Department Family,Entity,Date,Expense Type,Expense Area,Supplier,Transaction Number,Amount,Description
Ministry of Justice,LAA,21/10/2015,265000-IT & Telecommunications,VA403-IDP - Infrastructure,ATOS IT SERVICES UK LTD,2002878,"142,413.40 ",A-S-04169-05-v02 LAA CCMS Interim Support Resources May to Aug 2015
Ministry of Justice,LAA,07/10/2015,265000-IT & Telecommunications,VA501-Centralised Costs,ATOS IT SERVICES UK LTD,2002628,"47,259.33 ",RFS 4513 - Atos work on ICT - LAA Cambridge 
Ministry of Justice,LAA,14/10/2015,512000-Intangible GBV - Additions,VA403-IDP - Infrastructure,CAPGEMINI UK PLC,2002762,"60,000.00 ",Digital Service Framework Agreement (DSF) - T&M SOW2
Ministry of Justice,LAA,14/10/2015,512000-Intangible GBV - Additions,VA403-IDP - Infrastructure,CAPGEMINI UK PLC,2002762,"12,000.00 ",Digital Service Framework Agreement (DSF) - T&M SOW3
Ministry of Justice,LAA,08/10/2015,222002-Other Property Costs,VA396-Property Costs,DTZ,15044,"62,500.00 ",Liverpool-Property Rents
Ministry of Justice,LAA,08/10/2015,221000-Property Rent and Rates,VA396-Property Costs,DTZ,15044,"36,000.00 ",Liverpool-Property Rents
Ministry of Justice,LAA,23/10/2015,265000-IT & Telecommunications,VA294-ISD,GB GROUP PLC,15045,"24,750.00 ",Software and Hardware -ICT Licences
Ministry of Justice,LAA,23/10/2015,265000-IT & Telecommunications,VA294-ISD,GB GROUP PLC,15045,"4,950.00 ",Software and Hardware -ICT Licences
Ministry of Justice,LAA,23/10/2015,223000-Other Expenditure,VA094-Head of Legal,PUBLIC LAW PROJECT,2002994,"26,908.53 ",External Solicitors Fees
Ministry of Justice,LAA,21/10/2015,512000-Intangible GBV - Additions,VA294-ISD,REDCENTRIC SOLUTIONS LTD,2002960,"141,083.50 ",Redcentric Time & Materials - Agile Implementation
Ministry of Justice,LAA,21/10/2015,512000-Intangible GBV - Additions,VA294-ISD,REDCENTRIC SOLUTIONS LTD,2002960,"123,324.00 ",Redcentric Time & Materials - Agile Implementation
Ministry of Justice,LAA,21/10/2015,512000-Intangible GBV - Additions,VA294-ISD,REDCENTRIC SOLUTIONS LTD,2002960,"86,907.60 ",Redcentric Time & Materials - PaaS Service Design
Ministry of Justice,LAA,21/10/2015,512000-Intangible GBV - Additions,VA294-ISD,REDCENTRIC SOLUTIONS LTD,2002960,"37,220.00 ",Redcentric  Time & Materials - Agile Implementation
Ministry of Justice,LAA,21/10/2015,512000-Intangible GBV - Additions,VA294-ISD,REDCENTRIC SOLUTIONS LTD,2002960,"28,969.20 ",Redcentric  Time & Materials - PaaS Service Design
Ministry of Justice,LAA,21/10/2015,512000-Intangible GBV - Additions,VA294-ISD,REDCENTRIC SOLUTIONS LTD,2002960,"28,216.70 ",Redcentric  Time & Materials - Agile Implementation
Ministry of Justice,LAA,21/10/2015,512000-Intangible GBV - Additions,VA294-ISD,REDCENTRIC SOLUTIONS LTD,2002960,"24,664.80 ",Redcentric  Time & Materials - Agile Implementation
Ministry of Justice,LAA,21/10/2015,512000-Intangible GBV - Additions,VA294-ISD,REDCENTRIC SOLUTIONS LTD,2002960,"17,381.52 ",Redcentric Time & Materials - PaaS Service Design
Ministry of Justice,LAA,21/10/2015,512000-Intangible GBV - Additions,VA294-ISD,REDCENTRIC SOLUTIONS LTD,2002960,"7,444.00 ",Redcentric Time & Materials - Agile Implementation
Ministry of Justice,LAA,21/10/2015,512000-Intangible GBV - Additions,VA294-ISD,REDCENTRIC SOLUTIONS LTD,2002960,"5,793.84 ",Redcentric Time & Materials - PaaS Service Design
Ministry of Justice,LAA,07/10/2015,224000-Staff travel and other,VA293-Finance Directorate,REDFERN TRAVEL LTD,2002717,"106,385.70 ",Travel costs - Monthly charge
Ministry of Justice,LAA,14/10/2015,224000-Staff travel and other,VA293-Finance Directorate,REDFERN TRAVEL LTD,2002838,"102,638.95 ",Travel costs - Monthly charge
Ministry of Justice,LAA,07/10/2015,224000-Staff travel and other,VA293-Finance Directorate,REDFERN TRAVEL LTD,2002717,861.16 ,Travel costs
Ministry of Justice,LAA,14/10/2015,224000-Staff travel and other,VA293-Finance Directorate,REDFERN TRAVEL LTD,2002838,517.17 ,Travel costs
Ministry of Justice,LAA,07/10/2015,224000-Staff travel and other,VA293-Finance Directorate,REDFERN TRAVEL LTD,2002717,172.23 ,Travel costs
Ministry of Justice,LAA,14/10/2015,224000-Staff travel and other,VA293-Finance Directorate,REDFERN TRAVEL LTD,2002838,103.43 ,Travel costs
Ministry of Justice,LAA,07/10/2015,224000-Staff travel and other,VA293-Finance Directorate,REDFERN TRAVEL LTD,2002717,-0.73 ,Travel costs
Ministry of Justice,LAA,14/10/2015,224000-Staff travel and other,VA293-Finance Directorate,REDFERN TRAVEL LTD,2002838,0.08 ,Travel costs
Ministry of Justice,LAA,07/10/2015,224000-Staff travel and other,VA293-Finance Directorate,REDFERN TRAVEL LTD,2002717,-0.05 ,Travel costs
Ministry of Justice,LAA,14/10/2015,223000-Other Expenditure,VA395-National Courts Team,ROSSENDALES LTD,2002841,"75,883.75 ",Collections (Service Delivery) costs for CCMT covering April 2015 to March 2016
Ministry of Justice,LAA,14/10/2015,223000-Other Expenditure,VA395-National Courts Team,ROSSENDALES LTD,2002841,"60,749.45 ",Enforcement costs for CCMT covering April 2015 to March 2016
Ministry of Justice,LAA,14/10/2015,223000-Other Expenditure,VA395-National Courts Team,ROSSENDALES LTD,2002841,"39,342.00 ",Enforcement costs for CCMT covering April 2015 to March 2016
Ministry of Justice,LAA,14/10/2015,223000-Other Expenditure,VA395-National Courts Team,ROSSENDALES LTD,2002841,"5,757.79 ",Collections (Service Delivery) costs for CCMT covering April 2015 to March 2016
Ministry of Justice,LAA,21/10/2015,265000-IT & Telecommunications,VA294-ISD,TRUSTMARQUE SOLUTIONS LTD,2002973,"25,047.85 ",Annual Rental of NeoLoad End User Licence 5000 VU Professional Edition
Ministry of Justice,LAA,21/10/2015,265000-IT & Telecommunications,VA294-ISD,TRUSTMARQUE SOLUTIONS LTD,2002973,"5,138.10 ",Annual Rental of Oracle Forms Module for NeoLoad 5000 VU Professional Edition
Ministry of Justice,LAA,12/10/2015,221000-Property Rent and Rates,VA396-Property Costs,WORKMAN LLP,2002745,"87,930.00 ",Bristol-Property Rents
Ministry of Justice,LAA,12/10/2015,222002-Other Property Costs,VA396-Property Costs,WORKMAN LLP,2002745,"37,200.00 ",Bristol-Property Rents
Ministry of Justice,LAA,01/09/2015,Legal Help,Legal Aid Fund,Migrant Help,2002109,"27,536.83 ",Civil Legal Advice 
MINISTRY OF JUSTICE,LEGAL AID AGENCY,28/10/2015,Civil Representation,Legal Aid Fund,KEMI OJUTIKU,141902793,"-26,290.80 ",Legal Aid Payments
MINISTRY OF JUSTICE,LEGAL AID AGENCY,26/10/2015,Civil Representation,Legal Aid Fund,RACHEL A LANGDALE QC,141180977,"-57,214.56 ",Legal Aid Payments
MINISTRY OF JUSTICE,LEGAL AID AGENCY,14/10/2015,Civil Representation,Legal Aid Fund,THE FAMILY LAW CO BY HARTNELL CHANOT,141828042,"-25,745.87 ",Legal Aid Payments
MINISTRY OF JUSTICE,LEGAL AID AGENCY,28/10/2015,Crime Lower,Legal Aid Fund,I B B SOLICITORS,142012110,"-47,700.00 ",Legal Aid Payments
MINISTRY OF JUSTICE,LEGAL AID AGENCY,28/10/2015,Civil Representation,Legal Aid Fund,HARDINGTON HOGG,142009324,"-35,208.03 ",Legal Aid Payments
MINISTRY OF JUSTICE,LEGAL AID AGENCY,07/10/2015,Civil Representation,Legal Aid Fund,JASON M HADDEN,141762307,"-36,879.48 ",Legal Aid Payments
MINISTRY OF JUSTICE,LEGAL AID AGENCY,14/10/2015,Crime Higher,Legal Aid Fund,SONN MACMILLAN WALKER LTD,141836363,"-67,845.98 ",Legal Aid Payments
MINISTRY OF JUSTICE,LEGAL AID AGENCY,14/10/2015,Civil Representation,Legal Aid Fund,KATHRYN HUGHES,141651779,"-35,942.40 ",Legal Aid Payments
MINISTRY OF JUSTICE,LEGAL AID AGENCY,14/10/2015,Civil Representation,Legal Aid Fund,HCB WIDDOWS MASON LTD,141828213,"-27,170.34 ",Legal Aid Payments
MINISTRY OF JUSTICE,LEGAL AID AGENCY,14/10/2015,Civil Representation,Legal Aid Fund,GOODMAN RAY,141799999,"-25,057.62 ",Legal Aid Payments
MINISTRY OF JUSTICE,LEGAL AID AGENCY,07/10/2015,Civil Representation,Legal Aid Fund,RICHARD S HERMER QC,141761621,"-82,836.00 ",Legal Aid Payments
MINISTRY OF JUSTICE,LEGAL AID AGENCY,14/10/2015,Civil Representation,Legal Aid Fund,STUART GORDON SOLICITORS,141799130,"-41,842.20 ",Legal Aid Payments
MINISTRY OF JUSTICE,LEGAL AID AGENCY,14/10/2015,Civil Representation,Legal Aid Fund,MICHAEL D COLLARD,141798656,"-25,156.57 ",Legal Aid Payments
MINISTRY OF JUSTICE,LEGAL AID AGENCY,07/10/2015,Civil Representation,Legal Aid Fund,FRANCES J JUDD,141717511,"-51,062.40 ",Legal Aid Payments
MINISTRY OF JUSTICE,LEGAL AID AGENCY,22/10/2015,Civil Representation,Legal Aid Fund,HCB WIDDOWS MASON LTD,141947713,"-27,386.80 ",Legal Aid Payments
MINISTRY OF JUSTICE,LEGAL AID AGENCY,22/10/2015,Crime Higher,Legal Aid Fund,BINDMANS LLP,141907523,"-70,111.03 ",Legal Aid Payments
MINISTRY OF JUSTICE,LEGAL AID AGENCY,22/10/2015,Civil Representation,Legal Aid Fund,W M B LAW LTD,141935590,"-46,054.35 ",Legal Aid Payments
MINISTRY OF JUSTICE,LEGAL AID AGENCY,28/10/2015,Civil Representation,Legal Aid Fund,ELIZABETH MCGRATH,141086227,"-37,968.00 ",Legal Aid Payments
MINISTRY OF JUSTICE,LEGAL AID AGENCY,14/10/2015,Civil Representation,Legal Aid Fund,GILLIAN IRVING QC,141798620,"-54,340.80 ",Legal Aid Payments
MINISTRY OF JUSTICE,LEGAL AID AGENCY,28/10/2015,Civil Representation,Legal Aid Fund,HARDINGTON HOGG,142008950,"-34,568.03 ",Legal Aid Payments
MINISTRY OF JUSTICE,LEGAL AID AGENCY,22/10/2015,Civil Representation,Legal Aid Fund,LORNA G MEYER QC,141900755,"-51,210.96 ",Legal Aid Payments
MINISTRY OF JUSTICE,LEGAL AID AGENCY,22/10/2015,Civil Representation,Legal Aid Fund,RAMSDENS SOLICITORS LLP,141933780,"-69,057.74 ",Legal Aid Payments
MINISTRY OF JUSTICE,LEGAL AID AGENCY,14/10/2015,Civil Representation,Legal Aid Fund,PETER THOMAS-PEDDER,141871411,"-36,477.00 ",Legal Aid Payments
MINISTRY OF JUSTICE,LEGAL AID AGENCY,28/10/2015,Legal Help,Legal Aid Fund,BINDMANS LLP,141976191,"-28,202.42 ",Legal Aid Payments
MINISTRY OF JUSTICE,LEGAL AID AGENCY,07/10/2015,Civil Representation,Legal Aid Fund,HAYLEY M DANIEL,141717502,"-39,873.60 ",Legal Aid Payments
MINISTRY OF JUSTICE,LEGAL AID AGENCY,28/10/2015,Civil Representation,Legal Aid Fund,ANNA J WARTERS,141544515,"-49,838.50 ",Legal Aid Payments
MINISTRY OF JUSTICE,LEGAL AID AGENCY,28/10/2015,Civil Representation,Legal Aid Fund,PEPPERELLS SOLICITORS,141989578,"-55,048.36 ",Legal Aid Payments
MINISTRY OF JUSTICE,LEGAL AID AGENCY,14/10/2015,Civil Representation,Legal Aid Fund,FDR LAW,141861448,"-35,849.40 ",Legal Aid Payments
MINISTRY OF JUSTICE,LEGAL AID AGENCY,28/10/2015,Civil Representation,Legal Aid Fund,DUNCAN LEWIS,141990781,"-38,027.79 ",Legal Aid Payments
MINISTRY OF JUSTICE,LEGAL AID AGENCY,28/10/2015,Civil Representation,Legal Aid Fund,BHATIA BEST LTD,142028947,"-27,297.41 ",Legal Aid Payments
MINISTRY OF JUSTICE,LEGAL AID AGENCY,14/10/2015,Crime Lower,Legal Aid Fund,BENJAMIN KEITH,141858910,"-44,820.00 ",Legal Aid Payments
MINISTRY OF JUSTICE,LEGAL AID AGENCY,14/10/2015,Civil Representation,Legal Aid Fund,KEMI OJUTIKU,141838533,"26,290.80 ",Legal Aid Payment Civil Representation
MINISTRY OF JUSTICE,LEGAL AID AGENCY,26/10/2015,Crime Higher,Legal Aid Fund,RUSSELL-COOKE LLP,141956120,"34,311.85 ",Legal Aid Payment Crime Higher
MINISTRY OF JUSTICE,LEGAL AID AGENCY,28/10/2015,Civil Representation,Legal Aid Fund,KEMI OJUTIKU,141902791,"25,113.60 ",Legal Aid Payment Civil Representation
MINISTRY OF JUSTICE,LEGAL AID AGENCY,28/10/2015,Civil Representation,Legal Aid Fund,LEES SOLICITORS LLP,142011517,"30,037.07 ",Legal Aid Payment Civil Representation
MINISTRY OF JUSTICE,LEGAL AID AGENCY,26/10/2015,Civil Representation,Legal Aid Fund,RACHEL A LANGDALE QC,141168286,"53,385.96 ",Legal Aid Payment Civil Representation
MINISTRY OF JUSTICE,LEGAL AID AGENCY,07/10/2015,Civil Representation,Legal Aid Fund,FRANCES J JUDD,141656935,"51,062.40 ",Legal Aid Payment Civil Representation
MINISTRY OF JUSTICE,LEGAL AID AGENCY,07/10/2015,Civil Representation,Legal Aid Fund,HAYLEY M DANIEL,141656920,"39,873.60 ",Legal Aid Payment Civil Representation
MINISTRY OF JUSTICE,LEGAL AID AGENCY,07/10/2015,Civil Representation,Legal Aid Fund,ESN SOLICITORS,141682498,"36,000.00 ",Legal Aid Payment Civil Representation
MINISTRY OF JUSTICE,LEGAL AID AGENCY,07/10/2015,Civil Representation,Legal Aid Fund,AVERY NAYLOR LTD,141717249,"25,633.62 ",Legal Aid Payment Civil Representation
MINISTRY OF JUSTICE,LEGAL AID AGENCY,07/10/2015,Crime Higher,Legal Aid Fund,MATTHEW C LAWSON,141736311,"35,050.51 ",Legal Aid Payment Crime Higher
MINISTRY OF JUSTICE,LEGAL AID AGENCY,07/10/2015,Crime Higher,Legal Aid Fund,DANIEL JAMESON,141729398,"28,830.60 ",Legal Aid Payment Crime Higher
MINISTRY OF JUSTICE,LEGAL AID AGENCY,07/10/2015,Crime Higher,Legal Aid Fund,ELIZABETH H LOWE,141755822,"34,229.16 ",Legal Aid Payment Crime Higher
MINISTRY OF JUSTICE,LEGAL AID AGENCY,07/10/2015,Civil Representation,Legal Aid Fund,DAVID P A ROWLANDS,141760418,"31,650.00 ",Legal Aid Payment Civil Representation
MINISTRY OF JUSTICE,LEGAL AID AGENCY,07/10/2015,Crime Higher,Legal Aid Fund,ARANI SOLICITORS,141768011,"36,954.70 ",Legal Aid Payment Crime Higher
MINISTRY OF JUSTICE,LEGAL AID AGENCY,07/10/2015,Crime Higher,Legal Aid Fund,SMITH PARTNERSHIP,141768154,"51,827.42 ",Legal Aid Payment Crime Higher
MINISTRY OF JUSTICE,LEGAL AID AGENCY,07/10/2015,Crime Higher,Legal Aid Fund,RAHMAN RAVELLI SOLICTORS LTD,141785586,"50,374.86 ",Legal Aid Payment Crime Higher
MINISTRY OF JUSTICE,LEGAL AID AGENCY,07/10/2015,Crime Higher,Legal Aid Fund,J C WROE & CO,141794350,"29,664.55 ",Legal Aid Payment Crime Higher
MINISTRY OF JUSTICE,LEGAL AID AGENCY,07/10/2015,Crime Higher,Legal Aid Fund,CLIVE REES & ASSOCIATES,141794498,"79,887.83 ",Legal Aid Payment Crime Higher
MINISTRY OF JUSTICE,LEGAL AID AGENCY,14/10/2015,Civil Representation,Legal Aid Fund,MAKIN DIXON SOLICITORS LTD,141799313,"39,140.37 ",Legal Aid Payment Civil Representation
MINISTRY OF JUSTICE,LEGAL AID AGENCY,14/10/2015,Civil Representation,Legal Aid Fund,CAMPBELLS CHAMBERS,141812406,"41,492.73 ",Legal Aid Payment Civil Representation
MINISTRY OF JUSTICE,LEGAL AID AGENCY,14/10/2015,Crime Higher,Legal Aid Fund,FORBES SOLICITORS,141814341,"237,789.48 ",Legal Aid Payment Crime Higher
MINISTRY OF JUSTICE,LEGAL AID AGENCY,14/10/2015,Crime Higher,Legal Aid Fund,ADAM V S KANE,141808879,"51,876.04 ",Legal Aid Payment Crime Higher
MINISTRY OF JUSTICE,LEGAL AID AGENCY,14/10/2015,Crime Higher,Legal Aid Fund,ALTAF SOLICITORS LTD,141822998,"29,002.12 ",Legal Aid Payment Crime Higher
MINISTRY OF JUSTICE,LEGAL AID AGENCY,14/10/2015,Crime Higher,Legal Aid Fund,ZMS LEGAL LTD TA ZMS SOLICITORS,141823425,"33,524.18 ",Legal Aid Payment Crime Higher
MINISTRY OF JUSTICE,LEGAL AID AGENCY,14/10/2015,Civil Representation,Legal Aid Fund,THE FAMILY LAW CO BY HARTNELL CHANOT,141828014,"25,793.20 ",Legal Aid Payment Civil Representation
MINISTRY OF JUSTICE,LEGAL AID AGENCY,14/10/2015,Crime Higher,Legal Aid Fund,DEXTER HENRY & CO,141835920,"25,807.84 ",Legal Aid Payment Crime Higher
MINISTRY OF JUSTICE,LEGAL AID AGENCY,14/10/2015,Civil Representation,Legal Aid Fund,DAWSON CORNWELL,141841337,"25,843.05 ",Legal Aid Payment Civil Representation
MINISTRY OF JUSTICE,LEGAL AID AGENCY,14/10/2015,Crime Higher,Legal Aid Fund,MAIDMENTS LTD,141846430,"37,296.80 ",Legal Aid Payment Crime Higher
MINISTRY OF JUSTICE,LEGAL AID AGENCY,14/10/2015,Civil Representation,Legal Aid Fund,PUBLIC LAW PROJECT,141854271,"63,344.95 ",Legal Aid Payment Civil Representation
MINISTRY OF JUSTICE,LEGAL AID AGENCY,14/10/2015,Crime Higher,Legal Aid Fund,OBRADOVIC & CO,141867387,"65,397.12 ",Legal Aid Payment Crime Higher
MINISTRY OF JUSTICE,LEGAL AID AGENCY,14/10/2015,Civil Representation,Legal Aid Fund,SARAH BARCLAY & CO,141873214,"25,205.77 ",Legal Aid Payment Civil Representation
MINISTRY OF JUSTICE,LEGAL AID AGENCY,14/10/2015,Crime Higher,Legal Aid Fund,TUCKERS SOLICITORS LLP,141871053,"63,615.05 ",Legal Aid Payment Crime Higher
MINISTRY OF JUSTICE,LEGAL AID AGENCY,14/10/2015,Civil Representation,Legal Aid Fund,DUTTON GREGORY LLP,141871173,"25,881.81 ",Legal Aid Payment Civil Representation
MINISTRY OF JUSTICE,LEGAL AID AGENCY,14/10/2015,Civil Representation,Legal Aid Fund,PETER THOMAS-PEDDER,141826453,"48,666.00 ",Legal Aid Payment Civil Representation
MINISTRY OF JUSTICE,LEGAL AID AGENCY,14/10/2015,Civil Representation,Legal Aid Fund,KALSOOM MAQSOOD,141871968,"26,232.00 ",Legal Aid Payment Civil Representation
MINISTRY OF JUSTICE,LEGAL AID AGENCY,22/10/2015,Crime Higher,Legal Aid Fund,SHAIKH AYUB SOLICITORS,141882207,"105,857.93 ",Legal Aid Payment Crime Higher
MINISTRY OF JUSTICE,LEGAL AID AGENCY,22/10/2015,Civil Representation,Legal Aid Fund,BASTIAN LLOYD MORRIS SOLICITOR ADVOCATES,141874429,"32,483.40 ",Legal Aid Payment Civil Representation
MINISTRY OF JUSTICE,LEGAL AID AGENCY,22/10/2015,Crime Higher,Legal Aid Fund,IAN HENERY LTD,141881614,"54,497.60 ",Legal Aid Payment Crime Higher
MINISTRY OF JUSTICE,LEGAL AID AGENCY,22/10/2015,Crime Higher,Legal Aid Fund,DAVID T HOWKER QC,141882588,"37,677.17 ",Legal Aid Payment Crime Higher
MINISTRY OF JUSTICE,LEGAL AID AGENCY,22/10/2015,Crime Higher,Legal Aid Fund,ROWE SPARKES SOLICITORS LTD,141882026,"66,391.11 ",Legal Aid Payment Crime Higher
MINISTRY OF JUSTICE,LEGAL AID AGENCY,22/10/2015,Crime Higher,Legal Aid Fund,DANIEL BERMAN & CO,141882042,"56,356.91 ",Legal Aid Payment Crime Higher
MINISTRY OF JUSTICE,LEGAL AID AGENCY,22/10/2015,Crime Higher,Legal Aid Fund,HANSON YOUNG & CO SOLICITORS,141882086,"56,724.33 ",Legal Aid Payment Crime Higher
MINISTRY OF JUSTICE,LEGAL AID AGENCY,22/10/2015,Civil Representation,Legal Aid Fund,CHRISTOPHER LIMB,141784456,"30,055.50 ",Legal Aid Payment Civil Representation
MINISTRY OF JUSTICE,LEGAL AID AGENCY,22/10/2015,Crime Higher,Legal Aid Fund,SAUNDERS SOLICITORS LTD,141881842,"89,975.11 ",Legal Aid Payment Crime Higher
MINISTRY OF JUSTICE,LEGAL AID AGENCY,22/10/2015,Crime Higher,Legal Aid Fund,GOOD & CO SOLICITORS LLP,141895614,"61,006.13 ",Legal Aid Payment Crime Higher
MINISTRY OF JUSTICE,LEGAL AID AGENCY,22/10/2015,Crime Higher,Legal Aid Fund,STEPHENSONS SOLICITORS LLP,141894265,"61,510.89 ",Legal Aid Payment Crime Higher
MINISTRY OF JUSTICE,LEGAL AID AGENCY,22/10/2015,Crime Higher,Legal Aid Fund,ELLIOTT STERN SOLICITORS,141894674,"34,234.69 ",Legal Aid Payment Crime Higher
MINISTRY OF JUSTICE,LEGAL AID AGENCY,22/10/2015,Crime Higher,Legal Aid Fund,BINDMANS LLP,141907518,"70,111.03 ",Legal Aid Payment Crime Higher
MINISTRY OF JUSTICE,LEGAL AID AGENCY,22/10/2015,Crime Lower,Legal Aid Fund,NIGEL WELLER & CO,141938342,"44,156.44 ",Legal Aid Payment Crime Lower
MINISTRY OF JUSTICE,LEGAL AID AGENCY,22/10/2015,Legal Help,Legal Aid Fund,STEPHENSONS SOLICITORS LLP,141935599,"42,018.64 ",Legal Aid Payment Legal Help
MINISTRY OF JUSTICE,LEGAL AID AGENCY,22/10/2015,Crime Higher,Legal Aid Fund,STOKOE PARTNERSHIP,141942862,"33,640.42 ",Legal Aid Payment Crime Higher
MINISTRY OF JUSTICE,LEGAL AID AGENCY,22/10/2015,Crime Higher,Legal Aid Fund,GRAHAM J ARNOLD,141943831,"35,854.56 ",Legal Aid Payment Crime Higher
MINISTRY OF JUSTICE,LEGAL AID AGENCY,22/10/2015,Crime Higher,Legal Aid Fund,NEWGATE SOLICITORS,141943445,"88,334.26 ",Legal Aid Payment Crime Higher
MINISTRY OF JUSTICE,LEGAL AID AGENCY,26/10/2015,Crime Higher,Legal Aid Fund,NEUMANS LLP,141957434,"43,240.04 ",Legal Aid Payment Crime Higher
MINISTRY OF JUSTICE,LEGAL AID AGENCY,26/10/2015,Crime Higher,Legal Aid Fund,MARK JONES & PARTNERS,141956438,"37,296.80 ",Legal Aid Payment Crime Higher
MINISTRY OF JUSTICE,LEGAL AID AGENCY,28/10/2015,Crime Higher,Legal Aid Fund,HENRY BLAXLAND QC,141975604,"76,610.70 ",Legal Aid Payment Crime Higher
MINISTRY OF JUSTICE,LEGAL AID AGENCY,28/10/2015,Crime Higher,Legal Aid Fund,OLIVER COOK,141984247,"26,898.47 ",Legal Aid Payment Crime Higher
MINISTRY OF JUSTICE,LEGAL AID AGENCY,28/10/2015,Crime Higher,Legal Aid Fund,MIDDLEWEEKS,141985016,"52,478.82 ",Legal Aid Payment Crime Higher
MINISTRY OF JUSTICE,LEGAL AID AGENCY,28/10/2015,Crime Higher,Legal Aid Fund,DAVID B NATHAN QC,141983978,"32,004.08 ",Legal Aid Payment Crime Higher
MINISTRY OF JUSTICE,LEGAL AID AGENCY,28/10/2015,Crime Higher,Legal Aid Fund,CARTWRIGHT KING SOLICITORS,141971024,"62,693.92 ",Legal Aid Payment Crime Higher
MINISTRY OF JUSTICE,LEGAL AID AGENCY,28/10/2015,Legal Help,Legal Aid Fund,MONTAGUE SOLICITORS LTD,141991884,"27,478.00 ",Legal Aid Payment Legal Help
MINISTRY OF JUSTICE,LEGAL AID AGENCY,28/10/2015,Crime Higher,Legal Aid Fund,MINKA BRAUN,141998791,"34,229.16 ",Legal Aid Payment Crime Higher
MINISTRY OF JUSTICE,LEGAL AID AGENCY,28/10/2015,Crime Higher,Legal Aid Fund,BAXTER BROWN MCARTHUR SOLICITORS,141997692,"49,729.07 ",Legal Aid Payment Crime Higher
MINISTRY OF JUSTICE,LEGAL AID AGENCY,28/10/2015,Crime Higher,Legal Aid Fund,MARK N GRAFFIUS,141998084,"41,316.12 ",Legal Aid Payment Crime Higher
MINISTRY OF JUSTICE,LEGAL AID AGENCY,28/10/2015,Civil Representation,Legal Aid Fund,SARAH OHARA,141987902,"38,491.20 ",Legal Aid Payment Civil Representation
MINISTRY OF JUSTICE,LEGAL AID AGENCY,28/10/2015,Civil Representation,Legal Aid Fund,ELIZABETH ISAACS,141839783,"26,082.00 ",Legal Aid Payment Civil Representation
MINISTRY OF JUSTICE,LEGAL AID AGENCY,28/10/2015,Crime Higher,Legal Aid Fund,GEORGE A CARTER-STEPHENSON QC,142012427,"38,693.46 ",Legal Aid Payment Crime Higher
MINISTRY OF JUSTICE,LEGAL AID AGENCY,28/10/2015,Civil Representation,Legal Aid Fund,HARDINGTON HOGG,142008946,"35,208.03 ",Legal Aid Payment Civil Representation
MINISTRY OF JUSTICE,LEGAL AID AGENCY,28/10/2015,Legal Help,Legal Aid Fund,APPLEMAN LEGAL,142012935,"33,326.00 ",Legal Aid Payment Legal Help
MINISTRY OF JUSTICE,LEGAL AID AGENCY,28/10/2015,Crime Lower,Legal Aid Fund,SCOTT-MONCRIEFF & ASSOCIATES LLP,142018908,"38,300.00 ",Legal Aid Payment Crime Lower
MINISTRY OF JUSTICE,LEGAL AID AGENCY,28/10/2015,Crime Lower,Legal Aid Fund,CARRINGTONS SOLICITORS,142019475,"205,458.00 ",Legal Aid Payment Crime Lower
MINISTRY OF JUSTICE,LEGAL AID AGENCY,28/10/2015,Crime Lower,Legal Aid Fund,CARTWRIGHT KING SOLICITORS,142019480,"58,772.00 ",Legal Aid Payment Crime Lower
MINISTRY OF JUSTICE,LEGAL AID AGENCY,28/10/2015,Legal Help,Legal Aid Fund,CONFREYS,142018321,"30,506.00 ",Legal Aid Payment Legal Help
MINISTRY OF JUSTICE,LEGAL AID AGENCY,28/10/2015,Crime Lower,Legal Aid Fund,DALTON HOLMES GRAY,142019624,"33,008.00 ",Legal Aid Payment Crime Lower
MINISTRY OF JUSTICE,LEGAL AID AGENCY,28/10/2015,Crime Lower,Legal Aid Fund,G T STEWART SOLICITORS,142019632,"79,162.00 ",Legal Aid Payment Crime Lower
MINISTRY OF JUSTICE,LEGAL AID AGENCY,28/10/2015,Crime Lower,Legal Aid Fund,WATSON WOODHOUSE SOLICITORS LLP,142018970,"29,500.00 ",Legal Aid Payment Crime Lower
MINISTRY OF JUSTICE,LEGAL AID AGENCY,28/10/2015,Legal Help,Legal Aid Fund,RMNJ SOLICITORS ,142018402,"36,453.00 ",Legal Aid Payment Legal Help
MINISTRY OF JUSTICE,LEGAL AID AGENCY,28/10/2015,Crime Lower,Legal Aid Fund,HOWELLS LLP,142019017,"60,000.00 ",Legal Aid Payment Crime Lower
MINISTRY OF JUSTICE,LEGAL AID AGENCY,28/10/2015,Crime Lower,Legal Aid Fund,HOWARD & BYRNE SOLICITORS,142019035,"53,600.00 ",Legal Aid Payment Crime Lower
MINISTRY OF JUSTICE,LEGAL AID AGENCY,28/10/2015,Legal Help,Legal Aid Fund,BUTLER & CO,142017819,"36,500.00 ",Legal Aid Payment Legal Help
MINISTRY OF JUSTICE,LEGAL AID AGENCY,28/10/2015,Crime Lower,Legal Aid Fund,STEPHENSONS SOLICITORS LLP,142019788,"49,145.00 ",Legal Aid Payment Crime Lower
MINISTRY OF JUSTICE,LEGAL AID AGENCY,28/10/2015,Crime Lower,Legal Aid Fund,LLM SOLICITORS (LONDON) LTD,142020175,"45,039.00 ",Legal Aid Payment Crime Lower
MINISTRY OF JUSTICE,LEGAL AID AGENCY,28/10/2015,Crime Lower,Legal Aid Fund,BREYDONS SOLICITORS LTD,142019512,"25,730.00 ",Legal Aid Payment Crime Lower
MINISTRY OF JUSTICE,LEGAL AID AGENCY,28/10/2015,Crime Lower,Legal Aid Fund,NEUMANS LLP,142019543,"26,549.00 ",Legal Aid Payment Crime Lower
MINISTRY OF JUSTICE,LEGAL AID AGENCY,28/10/2015,Crime Lower,Legal Aid Fund,M B LAW LTD,142019572,"41,322.00 ",Legal Aid Payment Crime Lower
MINISTRY OF JUSTICE,LEGAL AID AGENCY,28/10/2015,Crime Lower,Legal Aid Fund,CROWE HUMBLE WESENCRAFT,142018992,"61,700.00 ",Legal Aid Payment Crime Lower
MINISTRY OF JUSTICE,LEGAL AID AGENCY,28/10/2015,Crime Lower,Legal Aid Fund,WALTERS & PLASKITT-INC LESLIE DODD & CO,142019287,"26,400.00 ",Legal Aid Payment Crime Lower
MINISTRY OF JUSTICE,LEGAL AID AGENCY,28/10/2015,Crime Lower,Legal Aid Fund,MICHAEL PURDON,142019697,"41,057.00 ",Legal Aid Payment Crime Lower
MINISTRY OF JUSTICE,LEGAL AID AGENCY,28/10/2015,Crime Lower,Legal Aid Fund,TATES,142019054,"31,000.00 ",Legal Aid Payment Crime Lower
MINISTRY OF JUSTICE,LEGAL AID AGENCY,28/10/2015,Crime Lower,Legal Aid Fund,O'GARRA'S SOLICITORS,142019061,"28,000.00 ",Legal Aid Payment Crime Lower
MINISTRY OF JUSTICE,LEGAL AID AGENCY,28/10/2015,Crime Lower,Legal Aid Fund,THE JOHNSON PARTNERSHIP,142019347,"48,400.00 ",Legal Aid Payment Crime Lower
MINISTRY OF JUSTICE,LEGAL AID AGENCY,28/10/2015,Crime Lower,Legal Aid Fund,LAWTONS SOLICITORS LTD,142019354,"76,200.00 ",Legal Aid Payment Crime Lower
MINISTRY OF JUSTICE,LEGAL AID AGENCY,28/10/2015,Crime Lower,Legal Aid Fund,CONNOR ROSS-BROWN SOLICITORS,142019363,"44,000.00 ",Legal Aid Payment Crime Lower
MINISTRY OF JUSTICE,LEGAL AID AGENCY,28/10/2015,Legal Help,Legal Aid Fund,LISA MARIE MCNULTY SOLICITOR,142018517,"28,600.00 ",Legal Aid Payment Legal Help
MINISTRY OF JUSTICE,LEGAL AID AGENCY,28/10/2015,Crime Lower,Legal Aid Fund,BULLIVANT LAW LTD,142018834,"32,000.00 ",Legal Aid Payment Crime Lower
MINISTRY OF JUSTICE,LEGAL AID AGENCY,28/10/2015,Crime Lower,Legal Aid Fund,EBR ATTRIDGE LLP,142018849,"47,500.00 ",Legal Aid Payment Crime Lower
MINISTRY OF JUSTICE,LEGAL AID AGENCY,28/10/2015,Crime Lower,Legal Aid Fund,BIRDS SOLICITORS LTD,142018857,"78,400.00 ",Legal Aid Payment Crime Lower
MINISTRY OF JUSTICE,LEGAL AID AGENCY,28/10/2015,Crime Lower,Legal Aid Fund,I B B SOLICITORS,142018872,"98,100.00 ",Legal Aid Payment Crime Lower
MINISTRY OF JUSTICE,LEGAL AID AGENCY,28/10/2015,Crime Lower,Legal Aid Fund,JOSEPH HILL & CO,142018881,"26,300.00 ",Legal Aid Payment Crime Lower
MINISTRY OF JUSTICE,LEGAL AID AGENCY,28/10/2015,Crime Lower,Legal Aid Fund,DUNCAN LEWIS,142018897,"127,200.00 ",Legal Aid Payment Crime Lower
MINISTRY OF JUSTICE,LEGAL AID AGENCY,28/10/2015,Crime Lower,Legal Aid Fund,SHEPHERD SOLICITORS LTD,142019853,"45,005.00 ",Legal Aid Payment Crime Lower
MINISTRY OF JUSTICE,LEGAL AID AGENCY,28/10/2015,Crime Lower,Legal Aid Fund,OSLERS SOLICITORS,142018807,"29,300.00 ",Legal Aid Payment Crime Lower
MINISTRY OF JUSTICE,LEGAL AID AGENCY,28/10/2015,Crime Lower,Legal Aid Fund,METCALFE COPEMAN & PETTEFAR,142018816,"38,800.00 ",Legal Aid Payment Crime Lower
MINISTRY OF JUSTICE,LEGAL AID AGENCY,28/10/2015,Crime Lower,Legal Aid Fund,HINE SOLICITORS,142020113,"34,189.00 ",Legal Aid Payment Crime Lower
MINISTRY OF JUSTICE,LEGAL AID AGENCY,28/10/2015,Crime Lower,Legal Aid Fund,M K LAW SOLICITORS LTD,142020124,"54,685.00 ",Legal Aid Payment Crime Lower
MINISTRY OF JUSTICE,LEGAL AID AGENCY,28/10/2015,Crime Lower,Legal Aid Fund,"GAMMON,PIERCY & GAIGER",142019895,"36,435.00 ",Legal Aid Payment Crime Lower
MINISTRY OF JUSTICE,LEGAL AID AGENCY,28/10/2015,Crime Lower,Legal Aid Fund,GALBRAITH BRANLEY SOLICITORS,142019584,"48,003.00 ",Legal Aid Payment Crime Lower
MINISTRY OF JUSTICE,LEGAL AID AGENCY,28/10/2015,Crime Lower,Legal Aid Fund,HASKELL & CO,142019865,"39,275.00 ",Legal Aid Payment Crime Lower
MINISTRY OF JUSTICE,LEGAL AID AGENCY,07/10/2015,Crime Higher,Legal Aid Fund,CYRIL MORRIS ARKWRIGHT,141729916,"50,254.39 ",Legal Aid Payment Crime Higher
MINISTRY OF JUSTICE,LEGAL AID AGENCY,14/10/2015,Crime Higher,Legal Aid Fund,GARSTANGS BURROWS BUSSIN LLP,141842028,"33,617.85 ",Legal Aid Payment Crime Higher
MINISTRY OF JUSTICE,LEGAL AID AGENCY,28/10/2015,Crime Lower,Legal Aid Fund,COOMBER RICH LTD,142019200,"28,800.00 ",Legal Aid Payment Crime Lower
MINISTRY OF JUSTICE,LEGAL AID AGENCY,22/10/2015,Civil Representation,Legal Aid Fund,J GERAINT NORRIS,141952079,"38,491.20 ",Legal Aid Payment Civil Representation
MINISTRY OF JUSTICE,LEGAL AID AGENCY,28/10/2015,Crime Lower,Legal Aid Fund,THE PURKISS PRACTICE,142019163,"28,000.00 ",Legal Aid Payment Crime Lower
MINISTRY OF JUSTICE,LEGAL AID AGENCY,22/10/2015,Crime Higher,Legal Aid Fund,COULSON READ LEWIS,141943800,"28,348.57 ",Legal Aid Payment Crime Higher
MINISTRY OF JUSTICE,LEGAL AID AGENCY,14/10/2015,Crime Higher,Legal Aid Fund,MATTHEW S BUCKLAND,141871055,"31,585.79 ",Legal Aid Payment Crime Higher
MINISTRY OF JUSTICE,LEGAL AID AGENCY,14/10/2015,Crime Lower,Legal Aid Fund,BENJAMIN KEITH,141858911,"45,900.00 ",Legal Aid Payment Crime Lower
MINISTRY OF JUSTICE,LEGAL AID AGENCY,28/10/2015,Legal Help,Legal Aid Fund,FOUNTAIN SOLICITORS LTD,142017778,"42,000.00 ",Legal Aid Payment Legal Help
MINISTRY OF JUSTICE,LEGAL AID AGENCY,14/10/2015,Crime Higher,Legal Aid Fund,ADVICE WISE SOLICITORS,141808735,"36,971.56 ",Legal Aid Payment Crime Higher
MINISTRY OF JUSTICE,LEGAL AID AGENCY,28/10/2015,Legal Help,Legal Aid Fund,BINDMANS LLP,142017979,"28,200.00 ",Legal Aid Payment Legal Help
MINISTRY OF JUSTICE,LEGAL AID AGENCY,28/10/2015,Crime Lower,Legal Aid Fund,HAMER CHILDS,142019304,"25,000.00 ",Legal Aid Payment Crime Lower
MINISTRY OF JUSTICE,LEGAL AID AGENCY,28/10/2015,Crime Lower,Legal Aid Fund,NELSON GUEST & PARTNERS,142018878,"54,600.00 ",Legal Aid Payment Crime Lower
MINISTRY OF JUSTICE,LEGAL AID AGENCY,22/10/2015,Crime Higher,Legal Aid Fund,DEFENCE LAW LTD,141882448,"45,042.24 ",Legal Aid Payment Crime Higher
MINISTRY OF JUSTICE,LEGAL AID AGENCY,14/10/2015,Civil Representation,Legal Aid Fund,EDWARD A FLOOD,141605506,"41,083.20 ",Legal Aid Payment Civil Representation
MINISTRY OF JUSTICE,LEGAL AID AGENCY,22/10/2015,Crime Higher,Legal Aid Fund,HODGE JONES & ALLEN LLP,141881828,"107,970.13 ",Legal Aid Payment Crime Higher
MINISTRY OF JUSTICE,LEGAL AID AGENCY,28/10/2015,Crime Lower,Legal Aid Fund,GOLDSTONES SOLICITORS LTD,142018710,"32,400.00 ",Legal Aid Payment Crime Lower
MINISTRY OF JUSTICE,LEGAL AID AGENCY,22/10/2015,Crime Higher,Legal Aid Fund,DALTON HOLMES GRAY,141882034,"89,975.11 ",Legal Aid Payment Crime Higher
MINISTRY OF JUSTICE,LEGAL AID AGENCY,28/10/2015,Crime Lower,Legal Aid Fund,HARRIS SOLICITORS,142020136,"28,262.00 ",Legal Aid Payment Crime Lower
MINISTRY OF JUSTICE,LEGAL AID AGENCY,14/10/2015,Crime Higher,Legal Aid Fund,CHARLES I SHERRARD,141808051,"36,366.72 ",Legal Aid Payment Crime Higher
MINISTRY OF JUSTICE,LEGAL AID AGENCY,28/10/2015,Crime Lower,Legal Aid Fund,OBW PERERA LTD,142018812,"29,000.00 ",Legal Aid Payment Crime Lower
MINISTRY OF JUSTICE,LEGAL AID AGENCY,14/10/2015,Civil Representation,Legal Aid Fund,ALISON WOODWARD,141813293,"30,844.80 ",Legal Aid Payment Civil Representation
MINISTRY OF JUSTICE,LEGAL AID AGENCY,28/10/2015,Crime Lower,Legal Aid Fund,RUSSELL & RUSSELL SOLICITORS,142019769,"37,325.00 ",Legal Aid Payment Crime Lower
MINISTRY OF JUSTICE,LEGAL AID AGENCY,28/10/2015,Crime Lower,Legal Aid Fund,GEOFF WHITE & CO,142019875,"41,528.00 ",Legal Aid Payment Crime Lower
MINISTRY OF JUSTICE,LEGAL AID AGENCY,22/10/2015,Crime Higher,Legal Aid Fund,POWELL SPENCER AND PARTNERS,141882985,"76,101.86 ",Legal Aid Payment Crime Higher
MINISTRY OF JUSTICE,LEGAL AID AGENCY,22/10/2015,Crime Higher,Legal Aid Fund,SANSBURY DOUGLAS,141895648,"28,340.97 ",Legal Aid Payment Crime Higher
MINISTRY OF JUSTICE,LEGAL AID AGENCY,22/10/2015,Civil Representation,Legal Aid Fund,DEWAR HOGAN,141677101,"35,571.00 ",Legal Aid Payment Civil Representation
MINISTRY OF JUSTICE,LEGAL AID AGENCY,28/10/2015,Crime Higher,Legal Aid Fund,ENNON & CO,141985067,"71,426.08 ",Legal Aid Payment Crime Higher
MINISTRY OF JUSTICE,LEGAL AID AGENCY,22/10/2015,Crime Higher,Legal Aid Fund,WHITFIELDS,141882092,"107,970.13 ",Legal Aid Payment Crime Higher
MINISTRY OF JUSTICE,LEGAL AID AGENCY,28/10/2015,Legal Help,Legal Aid Fund,HUNT & COOMBS LLP,142017870,"28,100.00 ",Legal Aid Payment Legal Help
MINISTRY OF JUSTICE,LEGAL AID AGENCY,22/10/2015,Civil Representation,Legal Aid Fund,MILLICHIPS,141949153,"26,964.47 ",Legal Aid Payment Civil Representation
MINISTRY OF JUSTICE,LEGAL AID AGENCY,28/10/2015,Crime Lower,Legal Aid Fund,LIONEL BLACKMAN SOLICITORS,142019157,"26,400.00 ",Legal Aid Payment Crime Lower
MINISTRY OF JUSTICE,LEGAL AID AGENCY,28/10/2015,Crime Higher,Legal Aid Fund,DRAYCOTT BROWNE LTD,141997495,"37,296.80 ",Legal Aid Payment Crime Higher
MINISTRY OF JUSTICE,LEGAL AID AGENCY,28/10/2015,Crime Higher,Legal Aid Fund,POWELL SPENCER AND PARTNERS,142021569,"31,741.43 ",Legal Aid Payment Crime Higher
MINISTRY OF JUSTICE,LEGAL AID AGENCY,28/10/2015,Crime Lower,Legal Aid Fund,POWELL SPENCER AND PARTNERS,142018843,"42,400.00 ",Legal Aid Payment Crime Lower
MINISTRY OF JUSTICE,LEGAL AID AGENCY,28/10/2015,Crime Lower,Legal Aid Fund,SONN MACMILLAN WALKER LTD,142018828,"45,000.00 ",Legal Aid Payment Crime Lower
MINISTRY OF JUSTICE,LEGAL AID AGENCY,26/10/2015,Crime Higher,Legal Aid Fund,KAMRANS SOLICITORS,141956516,"39,010.92 ",Legal Aid Payment Crime Higher
MINISTRY OF JUSTICE,LEGAL AID AGENCY,14/10/2015,Crime Higher,Legal Aid Fund,DJMS SOLICITORS LTD,141808378,"47,537.12 ",Legal Aid Payment Crime Higher
MINISTRY OF JUSTICE,LEGAL AID AGENCY,28/10/2015,Crime Lower,Legal Aid Fund,MCGANNS LAW LTD,142019473,"74,748.00 ",Legal Aid Payment Crime Lower
MINISTRY OF JUSTICE,LEGAL AID AGENCY,22/10/2015,Crime Higher,Legal Aid Fund,M R LAWS,141882088,"71,209.43 ",Legal Aid Payment Crime Higher
MINISTRY OF JUSTICE,LEGAL AID AGENCY,14/10/2015,Civil Representation,Legal Aid Fund,RACHEL WATKINS,141873437,"25,908.77 ",Legal Aid Payment Civil Representation
MINISTRY OF JUSTICE,LEGAL AID AGENCY,14/10/2015,Crime Higher,Legal Aid Fund,ONUMA & CO,141809236,"72,144.86 ",Legal Aid Payment Crime Higher
MINISTRY OF JUSTICE,LEGAL AID AGENCY,28/10/2015,Crime Higher,Legal Aid Fund,PARRY WELCH LACEY LLP,141971452,"83,449.02 ",Legal Aid Payment Crime Higher
MINISTRY OF JUSTICE,LEGAL AID AGENCY,14/10/2015,Crime Higher,Legal Aid Fund,GRAHAM J ARNOLD,141867739,"53,202.48 ",Legal Aid Payment Crime Higher
MINISTRY OF JUSTICE,LEGAL AID AGENCY,28/10/2015,Crime Lower,Legal Aid Fund,JAMES MURRAY SOLICITORS,142019660,"31,165.00 ",Legal Aid Payment Crime Lower
MINISTRY OF JUSTICE,LEGAL AID AGENCY,14/10/2015,Crime Higher,Legal Aid Fund,STEPHEN LICKRISH & ASSOCIATES LTD,141847501,"54,497.60 ",Legal Aid Payment Crime Higher
MINISTRY OF JUSTICE,LEGAL AID AGENCY,22/10/2015,Crime Higher,Legal Aid Fund,SATYANAND S BEHARRYLALA,141944314,"41,614.44 ",Legal Aid Payment Crime Higher
MINISTRY OF JUSTICE,LEGAL AID AGENCY,28/10/2015,Crime Higher,Legal Aid Fund,IAIN C MORLEY QC,141983756,"40,728.91 ",Legal Aid Payment Crime Higher
MINISTRY OF JUSTICE,LEGAL AID AGENCY,22/10/2015,Crime Higher,Legal Aid Fund,JOSEPH HILL & CO,141921702,"34,988.09 ",Legal Aid Payment Crime Higher
MINISTRY OF JUSTICE,LEGAL AID AGENCY,28/10/2015,Crime Lower,Legal Aid Fund,HINE SOLICITORS,142020114,"30,034.00 ",Legal Aid Payment Crime Lower
MINISTRY OF JUSTICE,LEGAL AID AGENCY,28/10/2015,Crime Lower,Legal Aid Fund,RICHARD HASWELL SOLICITORS LLP,142019695,"25,348.00 ",Legal Aid Payment Crime Lower
MINISTRY OF JUSTICE,LEGAL AID AGENCY,22/10/2015,Crime Higher,Legal Aid Fund,FARADAYS SOLICITORS LTD,141881876,"118,323.43 ",Legal Aid Payment Crime Higher
MINISTRY OF JUSTICE,LEGAL AID AGENCY,07/10/2015,Crime Higher,Legal Aid Fund,COHEN CRAMER,141793430,"26,206.01 ",Legal Aid Payment Crime Higher
MINISTRY OF JUSTICE,LEGAL AID AGENCY,28/10/2015,Crime Lower,Legal Aid Fund,MORGAN CULLEN BALL LTD,142020241,"30,561.00 ",Legal Aid Payment Crime Lower
MINISTRY OF JUSTICE,LEGAL AID AGENCY,07/10/2015,Crime Higher,Legal Aid Fund,DEAN E KERSHAW,141729246,"32,568.60 ",Legal Aid Payment Crime Higher
MINISTRY OF JUSTICE,LEGAL AID AGENCY,07/10/2015,Civil Representation,Legal Aid Fund,CHARLES N GEEKIE QC,141621592,"73,969.20 ",Legal Aid Payment Civil Representation
MINISTRY OF JUSTICE,LEGAL AID AGENCY,14/10/2015,Civil Representation,Legal Aid Fund,KATHRYN HUGHES,141638108,"36,460.80 ",Legal Aid Payment Civil Representation
MINISTRY OF JUSTICE,LEGAL AID AGENCY,14/10/2015,Crime Higher,Legal Aid Fund,MPR SOLICITORS LLP,141808270,"54,992.62 ",Legal Aid Payment Crime Higher
MINISTRY OF JUSTICE,LEGAL AID AGENCY,28/10/2015,Legal Help,Legal Aid Fund,CROWN HOUSE SOLICITORS,142012806,"26,142.00 ",Legal Aid Payment Legal Help
MINISTRY OF JUSTICE,LEGAL AID AGENCY,28/10/2015,Crime Higher,Legal Aid Fund,ADL SOLICITORS,141972173,"30,533.53 ",Legal Aid Payment Crime Higher
MINISTRY OF JUSTICE,LEGAL AID AGENCY,28/10/2015,Crime Lower,Legal Aid Fund,COTISENS SOLICITORS,142019604,"29,722.00 ",Legal Aid Payment Crime Lower
MINISTRY OF JUSTICE,LEGAL AID AGENCY,28/10/2015,Crime Lower,Legal Aid Fund,BLACKWELLS,142019041,"31,000.00 ",Legal Aid Payment Crime Lower
MINISTRY OF JUSTICE,LEGAL AID AGENCY,28/10/2015,Crime Lower,Legal Aid Fund,WILLIAMSONS SOLICITORS LTD,142019063,"36,600.00 ",Legal Aid Payment Crime Lower
MINISTRY OF JUSTICE,LEGAL AID AGENCY,28/10/2015,Crime Lower,Legal Aid Fund,CARTWRIGHT KING SOLICITORS,142019378,"29,000.00 ",Legal Aid Payment Crime Lower
MINISTRY OF JUSTICE,LEGAL AID AGENCY,28/10/2015,Crime Lower,Legal Aid Fund,G T STEWART SOLICITORS,142020111,"50,935.00 ",Legal Aid Payment Crime Lower
MINISTRY OF JUSTICE,LEGAL AID AGENCY,28/10/2015,Crime Lower,Legal Aid Fund,HINE SOLICITORS,142020119,"30,825.00 ",Legal Aid Payment Crime Lower
MINISTRY OF JUSTICE,LEGAL AID AGENCY,07/10/2015,Crime Higher,Legal Aid Fund,GARSTANGS BURROWS BUSSIN LLP,141794856,"50,400.28 ",Legal Aid Payment Crime Higher
MINISTRY OF JUSTICE,LEGAL AID AGENCY,14/10/2015,Civil Representation,Legal Aid Fund,SUSAN D GEORGE,141839787,"66,834.00 ",Legal Aid Payment Civil Representation
MINISTRY OF JUSTICE,LEGAL AID AGENCY,28/10/2015,Crime Lower,Legal Aid Fund,HAY & KILNER,142019691,"30,749.00 ",Legal Aid Payment Crime Lower
MINISTRY OF JUSTICE,LEGAL AID AGENCY,28/10/2015,Legal Help,Legal Aid Fund,THOMPSON & CO,142017955,"30,400.00 ",Legal Aid Payment Legal Help
MINISTRY OF JUSTICE,LEGAL AID AGENCY,28/10/2015,Crime Higher,Legal Aid Fund,SBG SOLICITORS,141972249,"66,752.67 ",Legal Aid Payment Crime Higher
MINISTRY OF JUSTICE,LEGAL AID AGENCY,22/10/2015,Legal Help,Legal Aid Fund,THE COMMUNITY LAW PARTNERSHIP LTD,141916515,"29,621.70 ",Legal Aid Payment Legal Help
MINISTRY OF JUSTICE,LEGAL AID AGENCY,28/10/2015,Crime Higher,Legal Aid Fund,USMANI KING LTD,141998867,"54,943.39 ",Legal Aid Payment Crime Higher
MINISTRY OF JUSTICE,LEGAL AID AGENCY,28/10/2015,Crime Lower,Legal Aid Fund,REEDS SOLICITORS LTD,142020242,"47,268.00 ",Legal Aid Payment Crime Lower
MINISTRY OF JUSTICE,LEGAL AID AGENCY,28/10/2015,Crime Lower,Legal Aid Fund,REEDS SOLICITORS LTD,142020073,"26,438.00 ",Legal Aid Payment Crime Lower
MINISTRY OF JUSTICE,LEGAL AID AGENCY,14/10/2015,Civil Representation,Legal Aid Fund,DAVID GRAY LLP,300000010481DCL425,"32,813.25 ",Legal Aid Payment Civil Representation
MINISTRY OF JUSTICE,LEGAL AID AGENCY,14/10/2015,Civil Representation,Legal Aid Fund,MAKIN DIXON SOLICITORS LTD,141877040,"26,689.70 ",Legal Aid Payment Civil Representation
MINISTRY OF JUSTICE,LEGAL AID AGENCY,28/10/2015,Legal Help,Legal Aid Fund,WIMBLEDON SOLICITORS,141992004,"27,386.00 ",Legal Aid Payment Legal Help
MINISTRY OF JUSTICE,LEGAL AID AGENCY,28/10/2015,Crime Lower,Legal Aid Fund,OLIVER D'SA SOLICITORS,142019459,"37,499.00 ",Legal Aid Payment Crime Lower
MINISTRY OF JUSTICE,LEGAL AID AGENCY,14/10/2015,Civil Representation,Legal Aid Fund,HCB WIDDOWS MASON LTD,141828201,"27,386.80 ",Legal Aid Payment Civil Representation
MINISTRY OF JUSTICE,LEGAL AID AGENCY,28/10/2015,Crime Lower,Legal Aid Fund,HINE SOLICITORS,142020115,"43,960.00 ",Legal Aid Payment Crime Lower
MINISTRY OF JUSTICE,LEGAL AID AGENCY,22/10/2015,Crime Higher,Legal Aid Fund,JONATHAN A C HIGGS QC,141921722,"28,302.73 ",Legal Aid Payment Crime Higher
MINISTRY OF JUSTICE,LEGAL AID AGENCY,22/10/2015,Crime Higher,Legal Aid Fund,KALBER STRUCKLEY & COMPANY,141882080,"25,807.84 ",Legal Aid Payment Crime Higher
MINISTRY OF JUSTICE,LEGAL AID AGENCY,28/10/2015,Crime Lower,Legal Aid Fund,BOOTS STARKE GOACHER SOLICITORS,142019886,"31,693.00 ",Legal Aid Payment Crime Lower
MINISTRY OF JUSTICE,LEGAL AID AGENCY,07/10/2015,Crime Higher,Legal Aid Fund,LOUISE J SWEET,141769045,"49,553.28 ",Legal Aid Payment Crime Higher
MINISTRY OF JUSTICE,LEGAL AID AGENCY,07/10/2015,Civil Representation,Legal Aid Fund,JAMES J HARGAN,141722154,"32,788.80 ",Legal Aid Payment Civil Representation
MINISTRY OF JUSTICE,LEGAL AID AGENCY,28/10/2015,Crime Lower,Legal Aid Fund,FDR LAW,142019765,"29,613.00 ",Legal Aid Payment Crime Lower
MINISTRY OF JUSTICE,LEGAL AID AGENCY,28/10/2015,Crime Lower,Legal Aid Fund,H P GOWER SOLICITORS,142020163,"53,257.00 ",Legal Aid Payment Crime Lower
MINISTRY OF JUSTICE,LEGAL AID AGENCY,14/10/2015,Crime Higher,Legal Aid Fund,CHRISTIAN C P A WASUNNA,141808025,"29,920.09 ",Legal Aid Payment Crime Higher
MINISTRY OF JUSTICE,LEGAL AID AGENCY,07/10/2015,Crime Higher,Legal Aid Fund,NADIA M CHBAT,141768748,"30,939.18 ",Legal Aid Payment Crime Higher
MINISTRY OF JUSTICE,LEGAL AID AGENCY,07/10/2015,Civil Representation,Legal Aid Fund,ADAM C PREST,141721439,"25,898.40 ",Legal Aid Payment Civil Representation
MINISTRY OF JUSTICE,LEGAL AID AGENCY,22/10/2015,Crime Higher,Legal Aid Fund,JOSEPH HILL & CO,141881782,"71,267.59 ",Legal Aid Payment Crime Higher
MINISTRY OF JUSTICE,LEGAL AID AGENCY,22/10/2015,Crime Higher,Legal Aid Fund,IAN F BRAZIER SOLICITORS,141922812,"32,437.92 ",Legal Aid Payment Crime Higher
MINISTRY OF JUSTICE,LEGAL AID AGENCY,14/10/2015,Civil Representation,Legal Aid Fund,AHMAD & WILLIAMS SOLICITORS LTD,141449231,"31,553.34 ",Legal Aid Payment Civil Representation
MINISTRY OF JUSTICE,LEGAL AID AGENCY,28/10/2015,Crime Lower,Legal Aid Fund,THOMAS BOYD WHYTE,142019577,"54,951.00 ",Legal Aid Payment Crime Lower
MINISTRY OF JUSTICE,LEGAL AID AGENCY,28/10/2015,Civil Representation,Legal Aid Fund,LESTER MORRILL  INC DAVIES GORE LOMAX,138126789,"37,429.30 ",Legal Aid Payment Civil Representation
MINISTRY OF JUSTICE,LEGAL AID AGENCY,22/10/2015,Crime Higher,Legal Aid Fund,THE CENTRAL LAW PRACTICE,141882013,"89,975.11 ",Legal Aid Payment Crime Higher
MINISTRY OF JUSTICE,LEGAL AID AGENCY,28/10/2015,Legal Help,Legal Aid Fund,M H LEGAL,142018105,"25,700.00 ",Legal Aid Payment Legal Help
MINISTRY OF JUSTICE,LEGAL AID AGENCY,22/10/2015,Crime Higher,Legal Aid Fund,STEVEN D EVANS,141895637,"42,708.01 ",Legal Aid Payment Crime Higher
MINISTRY OF JUSTICE,LEGAL AID AGENCY,28/10/2015,Crime Lower,Legal Aid Fund,POOLE ALCOCK LLP,142019092,"35,000.00 ",Legal Aid Payment Crime Lower
MINISTRY OF JUSTICE,LEGAL AID AGENCY,14/10/2015,Civil Representation,Legal Aid Fund,WTB SOLICITORS LLP,141813283,"26,357.00 ",Legal Aid Payment Civil Representation
MINISTRY OF JUSTICE,LEGAL AID AGENCY,07/10/2015,Civil Representation,Legal Aid Fund,RICHARD S HERMER QC,141761483,"82,836.00 ",Legal Aid Payment Civil Representation
MINISTRY OF JUSTICE,LEGAL AID AGENCY,22/10/2015,Crime Higher,Legal Aid Fund,JONAS ROY BLOOM,141943457,"89,975.11 ",Legal Aid Payment Crime Higher
MINISTRY OF JUSTICE,LEGAL AID AGENCY,28/10/2015,Crime Lower,Legal Aid Fund,KEMPS,142019780,"25,482.00 ",Legal Aid Payment Crime Lower
MINISTRY OF JUSTICE,LEGAL AID AGENCY,28/10/2015,Crime Lower,Legal Aid Fund,HDH LAW,142019348,"25,000.00 ",Legal Aid Payment Crime Lower
MINISTRY OF JUSTICE,LEGAL AID AGENCY,28/10/2015,Crime Lower,Legal Aid Fund,THE JOHNSON PARTNERSHIP,142018755,"64,000.00 ",Legal Aid Payment Crime Lower
MINISTRY OF JUSTICE,LEGAL AID AGENCY,14/10/2015,Crime Higher,Legal Aid Fund,HURRAIRAH HARRIS SOLICITORS,141836379,"60,600.00 ",Legal Aid Payment Crime Higher
MINISTRY OF JUSTICE,LEGAL AID AGENCY,14/10/2015,Crime Higher,Legal Aid Fund,ANGELA PORTER SOLICITORS,141867354,"32,330.22 ",Legal Aid Payment Crime Higher
MINISTRY OF JUSTICE,LEGAL AID AGENCY,28/10/2015,Crime Lower,Legal Aid Fund,BROCKBANK CURWEN CAIN & HALL,142019110,"25,000.00 ",Legal Aid Payment Crime Lower
MINISTRY OF JUSTICE,LEGAL AID AGENCY,14/10/2015,Crime Higher,Legal Aid Fund,HURRAIRAH HARRIS SOLICITORS,141836377,"105,857.75 ",Legal Aid Payment Crime Higher
MINISTRY OF JUSTICE,LEGAL AID AGENCY,22/10/2015,Crime Higher,Legal Aid Fund,G T STEWART SOLICITORS,141882155,"69,748.05 ",Legal Aid Payment Crime Higher
MINISTRY OF JUSTICE,LEGAL AID AGENCY,22/10/2015,Crime Higher,Legal Aid Fund,MCLARTYS SOLICITORS,141881523,"28,145.27 ",Legal Aid Payment Crime Higher
MINISTRY OF JUSTICE,LEGAL AID AGENCY,22/10/2015,Crime Higher,Legal Aid Fund,ABBEY SOLICITORS,141943395,"87,115.82 ",Legal Aid Payment Crime Higher
MINISTRY OF JUSTICE,LEGAL AID AGENCY,07/10/2015,Crime Higher,Legal Aid Fund,KEVIN I TOOMEY,141729665,"27,077.64 ",Legal Aid Payment Crime Higher
MINISTRY OF JUSTICE,LEGAL AID AGENCY,14/10/2015,Crime Higher,Legal Aid Fund,IMRAN KHAN & PARTNERS,141836233,"81,442.83 ",Legal Aid Payment Crime Higher
MINISTRY OF JUSTICE,LEGAL AID AGENCY,07/10/2015,Crime Higher,Legal Aid Fund,VYMAN SOLICITORS LIMITED,141794939,"46,153.72 ",Legal Aid Payment Crime Higher
MINISTRY OF JUSTICE,LEGAL AID AGENCY,22/10/2015,Crime Higher,Legal Aid Fund,CHOPRA & GILL SOLICITORS,141881986,"105,857.75 ",Legal Aid Payment Crime Higher
MINISTRY OF JUSTICE,LEGAL AID AGENCY,22/10/2015,Legal Help,Legal Aid Fund,SHELTER.,141935594,"42,942.64 ",Legal Aid Payment Legal Help
MINISTRY OF JUSTICE,LEGAL AID AGENCY,28/10/2015,Crime Lower,Legal Aid Fund,HENRY HYAMS,142019053,"33,300.00 ",Legal Aid Payment Crime Lower
MINISTRY OF JUSTICE,LEGAL AID AGENCY,28/10/2015,Crime Lower,Legal Aid Fund,CARTER OSBORNE LTD,142019470,"37,769.00 ",Legal Aid Payment Crime Lower
MINISTRY OF JUSTICE,LEGAL AID AGENCY,28/10/2015,Legal Help,Legal Aid Fund,BURKE NIAZI  LTD,142017969,"75,000.00 ",Legal Aid Payment Legal Help
MINISTRY OF JUSTICE,LEGAL AID AGENCY,07/10/2015,Crime Higher,Legal Aid Fund,CORPER SOLICITORS,141794288,"55,651.48 ",Legal Aid Payment Crime Higher
MINISTRY OF JUSTICE,LEGAL AID AGENCY,28/10/2015,Crime Lower,Legal Aid Fund,BELMORES SOLICITORS LTD,142018800,"56,000.00 ",Legal Aid Payment Crime Lower
MINISTRY OF JUSTICE,LEGAL AID AGENCY,28/10/2015,Crime Lower,Legal Aid Fund,PURCELL PARKER LTD,142019297,"85,000.00 ",Legal Aid Payment Crime Lower
MINISTRY OF JUSTICE,LEGAL AID AGENCY,28/10/2015,Legal Help,Legal Aid Fund,HOWELLS LLP,142017903,"40,000.00 ",Legal Aid Payment Legal Help
MINISTRY OF JUSTICE,LEGAL AID AGENCY,07/10/2015,Crime Higher,Legal Aid Fund,T S LAW LTD,141755467,"33,610.14 ",Legal Aid Payment Crime Higher
MINISTRY OF JUSTICE,LEGAL AID AGENCY,28/10/2015,Crime Lower,Legal Aid Fund,HUNT & COOMBS LLP,142018815,"26,700.00 ",Legal Aid Payment Crime Lower
MINISTRY OF JUSTICE,LEGAL AID AGENCY,22/10/2015,Crime Higher,Legal Aid Fund,NEWGATE SOLICITORS,141943422,"105,857.75 ",Legal Aid Payment Crime Higher
MINISTRY OF JUSTICE,LEGAL AID AGENCY,28/10/2015,Crime Lower,Legal Aid Fund,WALKER LAHIVE,142019932,"28,326.00 ",Legal Aid Payment Crime Lower
MINISTRY OF JUSTICE,LEGAL AID AGENCY,28/10/2015,Crime Lower,Legal Aid Fund,HEALEY COLBON,142018785,"30,000.00 ",Legal Aid Payment Crime Lower
MINISTRY OF JUSTICE,LEGAL AID AGENCY,14/10/2015,Crime Higher,Legal Aid Fund,SWITALSKI'S LTD,141867761,"84,381.14 ",Legal Aid Payment Crime Higher
MINISTRY OF JUSTICE,LEGAL AID AGENCY,28/10/2015,Crime Lower,Legal Aid Fund,LUMB & MACGILL,142019040,"35,000.00 ",Legal Aid Payment Crime Lower
MINISTRY OF JUSTICE,LEGAL AID AGENCY,28/10/2015,Crime Lower,Legal Aid Fund,ABV SOLICITORS,142018876,"80,800.00 ",Legal Aid Payment Crime Lower
MINISTRY OF JUSTICE,LEGAL AID AGENCY,22/10/2015,Crime Higher,Legal Aid Fund,THE JOHNSON PARTNERSHIP,141881977,"91,527.07 ",Legal Aid Payment Crime Higher
MINISTRY OF JUSTICE,LEGAL AID AGENCY,28/10/2015,Crime Higher,Legal Aid Fund,T V EDWARDS LLP,142020824,"39,323.88 ",Legal Aid Payment Crime Higher
MINISTRY OF JUSTICE,LEGAL AID AGENCY,14/10/2015,Crime Higher,Legal Aid Fund,OSLERS SOLICITORS,141823305,"70,612.86 ",Legal Aid Payment Crime Higher
MINISTRY OF JUSTICE,LEGAL AID AGENCY,22/10/2015,Crime Higher,Legal Aid Fund,JASON NICHOLSON,141881713,"47,745.78 ",Legal Aid Payment Crime Higher
MINISTRY OF JUSTICE,LEGAL AID AGENCY,28/10/2015,Civil Representation,Legal Aid Fund,JOHN A PITT VATER,3000000646710006,"27,442.80 ",Legal Aid Payment Civil Representation
MINISTRY OF JUSTICE,LEGAL AID AGENCY,14/10/2015,Crime Higher,Legal Aid Fund,LEONARD SMITH QC,141841790,"56,984.98 ",Legal Aid Payment Crime Higher
MINISTRY OF JUSTICE,LEGAL AID AGENCY,28/10/2015,Crime Lower,Legal Aid Fund,EDWARDS DUTHIE,142020276,"47,200.00 ",Legal Aid Payment Crime Lower
MINISTRY OF JUSTICE,LEGAL AID AGENCY,28/10/2015,Crime Higher,Legal Aid Fund,CARTWRIGHT KING SOLICITORS,141970652,"33,068.25 ",Legal Aid Payment Crime Higher
MINISTRY OF JUSTICE,LEGAL AID AGENCY,22/10/2015,Civil Representation,Legal Aid Fund,PAUL M STOREY QC,141891336,"37,359.00 ",Legal Aid Payment Civil Representation
MINISTRY OF JUSTICE,LEGAL AID AGENCY,14/10/2015,Civil Representation,Legal Aid Fund,WHITWORTH & GREEN SOLICITORS LTD,141733935,"25,466.97 ",Legal Aid Payment Civil Representation
MINISTRY OF JUSTICE,LEGAL AID AGENCY,28/10/2015,Crime Lower,Legal Aid Fund,WAINWRIGHT & CUMMINS LLP,142018940,"42,000.00 ",Legal Aid Payment Crime Lower
MINISTRY OF JUSTICE,LEGAL AID AGENCY,07/10/2015,Civil Representation,Legal Aid Fund,AVERY NAYLOR LTD,141721894,"34,741.90 ",Legal Aid Payment Civil Representation
MINISTRY OF JUSTICE,LEGAL AID AGENCY,07/10/2015,Crime Higher,Legal Aid Fund,STEPHEN LICKRISH & ASSOCIATES LTD,141794316,"31,149.53 ",Legal Aid Payment Crime Higher
MINISTRY OF JUSTICE,LEGAL AID AGENCY,28/10/2015,Legal Help,Legal Aid Fund,PETER EDWARDS LAW LTD,142017938,"59,200.00 ",Legal Aid Payment Legal Help
MINISTRY OF JUSTICE,LEGAL AID AGENCY,07/10/2015,Crime Higher,Legal Aid Fund,TYRONE SILCOTT,141743261,"27,615.65 ",Legal Aid Payment Crime Higher
MINISTRY OF JUSTICE,LEGAL AID AGENCY,22/10/2015,Crime Higher,Legal Aid Fund,SHANAHANS SOLICITORS & ADVOCATES,141943377,"87,490.19 ",Legal Aid Payment Crime Higher
MINISTRY OF JUSTICE,LEGAL AID AGENCY,22/10/2015,Civil Representation,Legal Aid Fund,HANNAH J SIMPSON,141911986,"29,548.80 ",Legal Aid Payment Civil Representation
MINISTRY OF JUSTICE,LEGAL AID AGENCY,14/10/2015,Crime Higher,Legal Aid Fund,JOSEPH HILL & CO,141867572,"55,729.02 ",Legal Aid Payment Crime Higher
MINISTRY OF JUSTICE,LEGAL AID AGENCY,28/10/2015,Crime Higher,Legal Aid Fund,ASHCOTT SOLICITORS LTD,141970959,"65,864.16 ",Legal Aid Payment Crime Higher
MINISTRY OF JUSTICE,LEGAL AID AGENCY,28/10/2015,Crime Lower,Legal Aid Fund,CLARKE KIERNAN LLP,142019861,"25,128.00 ",Legal Aid Payment Crime Lower
MINISTRY OF JUSTICE,LEGAL AID AGENCY,22/10/2015,Crime Higher,Legal Aid Fund,PAUL G DUESTER,141944191,"29,420.11 ",Legal Aid Payment Crime Higher
MINISTRY OF JUSTICE,LEGAL AID AGENCY,14/10/2015,Crime Higher,Legal Aid Fund,GHP LEGAL,141847336,"31,339.98 ",Legal Aid Payment Crime Higher
MINISTRY OF JUSTICE,LEGAL AID AGENCY,28/10/2015,Crime Lower,Legal Aid Fund,GEOFFREY FORRESTER & CO,142018984,"35,100.00 ",Legal Aid Payment Crime Lower
MINISTRY OF JUSTICE,LEGAL AID AGENCY,26/10/2015,Crime Higher,Legal Aid Fund,GARCHA & CO,141957367,"30,923.56 ",Legal Aid Payment Crime Higher
MINISTRY OF JUSTICE,LEGAL AID AGENCY,28/10/2015,Crime Higher,Legal Aid Fund,LEILA GASKIN,141998484,"31,965.00 ",Legal Aid Payment Crime Higher
MINISTRY OF JUSTICE,LEGAL AID AGENCY,28/10/2015,Crime Lower,Legal Aid Fund,BRADY EASTWOOD PIERCE & STEWART,142019609,"34,449.00 ",Legal Aid Payment Crime Lower
MINISTRY OF JUSTICE,LEGAL AID AGENCY,28/10/2015,Crime Lower,Legal Aid Fund,BAXTER BROWN MCARTHUR SOLICITORS,142018861,"27,700.00 ",Legal Aid Payment Crime Lower
MINISTRY OF JUSTICE,LEGAL AID AGENCY,22/10/2015,Crime Higher,Legal Aid Fund,DRAYCOTT BROWNE LTD,141943367,"81,272.03 ",Legal Aid Payment Crime Higher
MINISTRY OF JUSTICE,LEGAL AID AGENCY,22/10/2015,Crime Higher,Legal Aid Fund,NOBLE SOLICITORS,141882167,"69,396.31 ",Legal Aid Payment Crime Higher
MINISTRY OF JUSTICE,LEGAL AID AGENCY,28/10/2015,Crime Higher,Legal Aid Fund,COBLEYS LLP,141978288,"37,900.06 ",Legal Aid Payment Crime Higher
MINISTRY OF JUSTICE,LEGAL AID AGENCY,07/10/2015,Crime Higher,Legal Aid Fund,TERESA A M LOFTUS,141742687,"26,367.97 ",Legal Aid Payment Crime Higher
MINISTRY OF JUSTICE,LEGAL AID AGENCY,14/10/2015,Civil Representation,Legal Aid Fund,ARKRIGHTS SOLICITORS,141826338,"34,945.21 ",Legal Aid Payment Civil Representation
MINISTRY OF JUSTICE,LEGAL AID AGENCY,28/10/2015,Crime Lower,Legal Aid Fund,SMITH & DAWSON,142019265,"32,900.00 ",Legal Aid Payment Crime Lower
MINISTRY OF JUSTICE,LEGAL AID AGENCY,28/10/2015,Crime Lower,Legal Aid Fund,SHARMA LAW SOLICITORS,142020189,"25,728.00 ",Legal Aid Payment Crime Lower
MINISTRY OF JUSTICE,LEGAL AID AGENCY,28/10/2015,Crime Higher,Legal Aid Fund,JOHN J COFFEY QC,141997532,"26,784.67 ",Legal Aid Payment Crime Higher
MINISTRY OF JUSTICE,LEGAL AID AGENCY,22/10/2015,Crime Higher,Legal Aid Fund,EBR ATTRIDGE LLP,141943803,"25,576.03 ",Legal Aid Payment Crime Higher
MINISTRY OF JUSTICE,LEGAL AID AGENCY,14/10/2015,Crime Higher,Legal Aid Fund,SIMPSON HEALD PEARSON,141809180,"45,964.70 ",Legal Aid Payment Crime Higher
MINISTRY OF JUSTICE,LEGAL AID AGENCY,28/10/2015,Crime Lower,Legal Aid Fund,ALEXANDER BENNETT,142019372,"27,000.00 ",Legal Aid Payment Crime Lower
MINISTRY OF JUSTICE,LEGAL AID AGENCY,28/10/2015,Crime Lower,Legal Aid Fund,SUNDIP MURRIA SOLICITORS,142019320,"29,100.00 ",Legal Aid Payment Crime Lower
MINISTRY OF JUSTICE,LEGAL AID AGENCY,28/10/2015,Legal Help,Legal Aid Fund,GUILE NICHOLAS-INC DONALD GALBRAITH & CO,142017968,"53,400.00 ",Legal Aid Payment Legal Help
MINISTRY OF JUSTICE,LEGAL AID AGENCY,28/10/2015,Crime Higher,Legal Aid Fund,GGP LAW LTD,141983847,"38,725.92 ",Legal Aid Payment Crime Higher
MINISTRY OF JUSTICE,LEGAL AID AGENCY,14/10/2015,Crime Higher,Legal Aid Fund,N P SOLICITORS,141867755,"38,062.99 ",Legal Aid Payment Crime Higher
MINISTRY OF JUSTICE,LEGAL AID AGENCY,28/10/2015,Crime Lower,Legal Aid Fund,FORBES SOLICITORS,142019105,"34,000.00 ",Legal Aid Payment Crime Lower
MINISTRY OF JUSTICE,LEGAL AID AGENCY,28/10/2015,Crime Lower,Legal Aid Fund,J D SOLICITORS,142020080,"30,797.00 ",Legal Aid Payment Crime Lower
MINISTRY OF JUSTICE,LEGAL AID AGENCY,28/10/2015,Civil Representation,Legal Aid Fund,BHATIA BEST LTD,141990368,"27,297.41 ",Legal Aid Payment Civil Representation
MINISTRY OF JUSTICE,LEGAL AID AGENCY,28/10/2015,Crime Higher,Legal Aid Fund,TAIT FARRIER GRAHAM,142020974,"39,010.92 ",Legal Aid Payment Crime Higher
MINISTRY OF JUSTICE,LEGAL AID AGENCY,28/10/2015,Crime Lower,Legal Aid Fund,TAYLOR HALDANE BARLEX LLP,142019528,"25,227.00 ",Legal Aid Payment Crime Lower
MINISTRY OF JUSTICE,LEGAL AID AGENCY,22/10/2015,Crime Higher,Legal Aid Fund,PAUL MARTIN & CO,141944390,"28,977.38 ",Legal Aid Payment Crime Higher
MINISTRY OF JUSTICE,LEGAL AID AGENCY,14/10/2015,Civil Representation,Legal Aid Fund,BASTIAN LLOYD MORRIS SOLICITOR ADVOCATES,141872823,"26,969.76 ",Legal Aid Payment Civil Representation
MINISTRY OF JUSTICE,LEGAL AID AGENCY,28/10/2015,Crime Higher,Legal Aid Fund,STUART MILLER SOLICITORS LTD,142021256,"47,376.30 ",Legal Aid Payment Crime Higher
MINISTRY OF JUSTICE,LEGAL AID AGENCY,14/10/2015,Crime Lower,Legal Aid Fund,SWITALSKI'S LTD,141829238,"26,265.71 ",Legal Aid Payment Crime Lower
MINISTRY OF JUSTICE,LEGAL AID AGENCY,28/10/2015,Crime Lower,Legal Aid Fund,TRANTERS CRIMINAL LAW PRACTICE,142019128,"27,100.00 ",Legal Aid Payment Crime Lower
MINISTRY OF JUSTICE,LEGAL AID AGENCY,28/10/2015,Crime Lower,Legal Aid Fund,EDWARD FAIL BRADSHAW & WATERSON,142019640,"26,958.00 ",Legal Aid Payment Crime Lower
MINISTRY OF JUSTICE,LEGAL AID AGENCY,28/10/2015,Crime Lower,Legal Aid Fund,CARTWRIGHT KING SOLICITORS,142019376,"47,000.00 ",Legal Aid Payment Crime Lower
MINISTRY OF JUSTICE,LEGAL AID AGENCY,28/10/2015,Crime Lower,Legal Aid Fund,ERIC ROBINSON SOLICITORS,142019179,"26,800.00 ",Legal Aid Payment Crime Lower
MINISTRY OF JUSTICE,LEGAL AID AGENCY,14/10/2015,Civil Representation,Legal Aid Fund,SCOTT DUFF & CO LIMITED,141788524,"40,679.22 ",Legal Aid Payment Civil Representation
MINISTRY OF JUSTICE,LEGAL AID AGENCY,14/10/2015,Crime Higher,Legal Aid Fund,ASGHAR & CO,141866847,"33,610.14 ",Legal Aid Payment Crime Higher
MINISTRY OF JUSTICE,LEGAL AID AGENCY,28/10/2015,Civil Representation,Legal Aid Fund,JOHN KER-REID,141977340,"68,480.69 ",Legal Aid Payment Civil Representation
MINISTRY OF JUSTICE,LEGAL AID AGENCY,14/10/2015,Crime Higher,Legal Aid Fund,FREEMANS SOLICITORS,141847392,"40,422.35 ",Legal Aid Payment Crime Higher
MINISTRY OF JUSTICE,LEGAL AID AGENCY,22/10/2015,Legal Help,Legal Aid Fund,DIRECT HELP & ADVICE LTD,141934453,"28,844.64 ",Legal Aid Payment Legal Help
MINISTRY OF JUSTICE,LEGAL AID AGENCY,22/10/2015,Crime Higher,Legal Aid Fund,BSB SOLICITORS,141944398,"29,101.44 ",Legal Aid Payment Crime Higher
MINISTRY OF JUSTICE,LEGAL AID AGENCY,28/10/2015,Crime Lower,Legal Aid Fund,DUNCAN LEWIS,142020270,"25,153.00 ",Legal Aid Payment Crime Lower
MINISTRY OF JUSTICE,LEGAL AID AGENCY,28/10/2015,Crime Lower,Legal Aid Fund,J D SOLICITORS,142020010,"40,019.00 ",Legal Aid Payment Crime Lower
MINISTRY OF JUSTICE,LEGAL AID AGENCY,28/10/2015,Crime Lower,Legal Aid Fund,VICKERS CHISMAN & WISHLADE,142018969,"43,800.00 ",Legal Aid Payment Crime Lower
MINISTRY OF JUSTICE,LEGAL AID AGENCY,28/10/2015,Legal Help,Legal Aid Fund,FADIGA & CO LTD,142018432,"54,484.00 ",Legal Aid Payment Legal Help
MINISTRY OF JUSTICE,LEGAL AID AGENCY,14/10/2015,Civil Representation,Legal Aid Fund,PUBLIC LAW PROJECT,141854142,"30,000.00 ",Legal Aid Payment Civil Representation
MINISTRY OF JUSTICE,LEGAL AID AGENCY,28/10/2015,Crime Higher,Legal Aid Fund,CHARLES A BOTT QC,141984208,"33,972.00 ",Legal Aid Payment Crime Higher
MINISTRY OF JUSTICE,LEGAL AID AGENCY,07/10/2015,Civil Representation,Legal Aid Fund,DUNCAN LEWIS,141760037,"38,027.79 ",Legal Aid Payment Civil Representation
MINISTRY OF JUSTICE,LEGAL AID AGENCY,28/10/2015,Civil Representation,Legal Aid Fund,VICTORIA J EDMONDS,142008049,"25,358.40 ",Legal Aid Payment Civil Representation
MINISTRY OF JUSTICE,LEGAL AID AGENCY,28/10/2015,Crime Lower,Legal Aid Fund,HINE SOLICITORS,142020118,"70,192.00 ",Legal Aid Payment Crime Lower
MINISTRY OF JUSTICE,LEGAL AID AGENCY,28/10/2015,Crime Higher,Legal Aid Fund,SONN MACMILLAN WALKER LTD,141978430,"44,184.71 ",Legal Aid Payment Crime Higher
MINISTRY OF JUSTICE,LEGAL AID AGENCY,14/10/2015,Crime Higher,Legal Aid Fund,M K LAW SOLICITORS LTD,141836485,"25,140.71 ",Legal Aid Payment Crime Higher
MINISTRY OF JUSTICE,LEGAL AID AGENCY,14/10/2015,Civil Representation,Legal Aid Fund,PUBLIC LAW PROJECT,141854017,"93,750.00 ",Legal Aid Payment Civil Representation
MINISTRY OF JUSTICE,LEGAL AID AGENCY,28/10/2015,Crime Lower,Legal Aid Fund,DPP LAW LTD,142018875,"35,500.00 ",Legal Aid Payment Crime Lower
MINISTRY OF JUSTICE,LEGAL AID AGENCY,28/10/2015,Crime Lower,Legal Aid Fund,HARRIS CUFFARO & NICHOLS,142018787,"37,400.00 ",Legal Aid Payment Crime Lower
MINISTRY OF JUSTICE,LEGAL AID AGENCY,22/10/2015,Crime Higher,Legal Aid Fund,FMW LAW LTD,141944288,"98,602.86 ",Legal Aid Payment Crime Higher
MINISTRY OF JUSTICE,LEGAL AID AGENCY,28/10/2015,Crime Lower,Legal Aid Fund,VYMAN SOLICITORS LIMITED,142019857,"28,596.00 ",Legal Aid Payment Crime Lower
MINISTRY OF JUSTICE,LEGAL AID AGENCY,28/10/2015,Crime Lower,Legal Aid Fund,STEPHEN BURDON SOLICITORS,142018757,"29,500.00 ",Legal Aid Payment Crime Lower
MINISTRY OF JUSTICE,LEGAL AID AGENCY,28/10/2015,Crime Lower,Legal Aid Fund,ROY FOREMAN & CO SOLICITORS,142019051,"34,000.00 ",Legal Aid Payment Crime Lower
MINISTRY OF JUSTICE,LEGAL AID AGENCY,28/10/2015,Legal Help,Legal Aid Fund,CARTWRIGHT KING SOLICITORS,142018592,"69,985.00 ",Legal Aid Payment Legal Help
MINISTRY OF JUSTICE,LEGAL AID AGENCY,28/10/2015,Crime Lower,Legal Aid Fund,GHP LEGAL,142018723,"34,300.00 ",Legal Aid Payment Crime Lower
MINISTRY OF JUSTICE,LEGAL AID AGENCY,22/10/2015,Crime Higher,Legal Aid Fund,BARK & CO,141943453,"66,386.79 ",Legal Aid Payment Crime Higher
MINISTRY OF JUSTICE,LEGAL AID AGENCY,07/10/2015,Crime Higher,Legal Aid Fund,J D SPICER ZEB,141728852,"32,803.93 ",Legal Aid Payment Crime Higher
MINISTRY OF JUSTICE,LEGAL AID AGENCY,22/10/2015,Crime Higher,Legal Aid Fund,HALLINAN BLACKBURN GITTINGS & NOTT,141882044,"60,682.25 ",Legal Aid Payment Crime Higher
MINISTRY OF JUSTICE,LEGAL AID AGENCY,28/10/2015,Crime Lower,Legal Aid Fund,TUCKERS SOLICITORS LLP,142019130,"80,900.00 ",Legal Aid Payment Crime Lower
MINISTRY OF JUSTICE,LEGAL AID AGENCY,28/10/2015,Civil Representation,Legal Aid Fund,VANESSA V MEACHIN,142008045,"38,293.19 ",Legal Aid Payment Civil Representation
MINISTRY OF JUSTICE,LEGAL AID AGENCY,28/10/2015,Legal Help,Legal Aid Fund,COLIN JONES CLARKE & HARTLAND SOLICITORS,142012938,"36,762.00 ",Legal Aid Payment Legal Help
MINISTRY OF JUSTICE,LEGAL AID AGENCY,07/10/2015,Crime Higher,Legal Aid Fund,DAVID S HISLOP QC,141794901,"44,379.35 ",Legal Aid Payment Crime Higher
MINISTRY OF JUSTICE,LEGAL AID AGENCY,22/10/2015,Crime Higher,Legal Aid Fund,FMW LAW LTD,141922515,"37,129.08 ",Legal Aid Payment Crime Higher
MINISTRY OF JUSTICE,LEGAL AID AGENCY,22/10/2015,Crime Higher,Legal Aid Fund,D J BATCUP,141952101,"25,999.99 ",Legal Aid Payment Crime Higher
MINISTRY OF JUSTICE,LEGAL AID AGENCY,07/10/2015,Civil Representation,Legal Aid Fund,RIDLEY & HALL LEGAL LTD,141722139,"51,118.87 ",Legal Aid Payment Civil Representation
MINISTRY OF JUSTICE,LEGAL AID AGENCY,28/10/2015,Crime Lower,Legal Aid Fund,ACHOM & PARTNERS,142020165,"27,606.00 ",Legal Aid Payment Crime Lower
MINISTRY OF JUSTICE,LEGAL AID AGENCY,07/10/2015,Crime Higher,Legal Aid Fund,CORPER SOLICITORS,141795180,"43,131.55 ",Legal Aid Payment Crime Higher
MINISTRY OF JUSTICE,LEGAL AID AGENCY,22/10/2015,Civil Representation,Legal Aid Fund,AVERY NAYLOR LTD,141887531,"57,286.30 ",Legal Aid Payment Civil Representation
MINISTRY OF JUSTICE,LEGAL AID AGENCY,14/10/2015,Legal Help,Legal Aid Fund,CLARKES LLP,141877092,"29,000.29 ",Legal Aid Payment Legal Help
MINISTRY OF JUSTICE,LEGAL AID AGENCY,14/10/2015,Crime Higher,Legal Aid Fund,EDWARDS DUTHIE,141846531,"51,397.69 ",Legal Aid Payment Crime Higher
MINISTRY OF JUSTICE,LEGAL AID AGENCY,07/10/2015,Crime Higher,Legal Aid Fund,IAN M BOURNE QC,141767949,"28,923.53 ",Legal Aid Payment Crime Higher
MINISTRY OF JUSTICE,LEGAL AID AGENCY,28/10/2015,Crime Lower,Legal Aid Fund,LHD SOLICITORS LTD,142019079,"55,000.00 ",Legal Aid Payment Crime Lower
MINISTRY OF JUSTICE,LEGAL AID AGENCY,28/10/2015,Legal Help,Legal Aid Fund,WOLTON & CO,142018226,"32,842.00 ",Legal Aid Payment Legal Help
MINISTRY OF JUSTICE,LEGAL AID AGENCY,22/10/2015,Crime Higher,Legal Aid Fund,LEVALES SOLICITORS LLP,141881999,"74,340.86 ",Legal Aid Payment Crime Higher
MINISTRY OF JUSTICE,LEGAL AID AGENCY,28/10/2015,Crime Higher,Legal Aid Fund,LEWIS POWER,142022638,"31,408.15 ",Legal Aid Payment Crime Higher
MINISTRY OF JUSTICE,LEGAL AID AGENCY,22/10/2015,Crime Higher,Legal Aid Fund,PAUL CROWLEY & CO SOLICITORS LTD,141881862,"89,975.11 ",Legal Aid Payment Crime Higher
MINISTRY OF JUSTICE,LEGAL AID AGENCY,07/10/2015,Crime Higher,Legal Aid Fund,HOWARD BERNSTEIN SOLICITORS,141768739,"30,287.97 ",Legal Aid Payment Crime Higher
MINISTRY OF JUSTICE,LEGAL AID AGENCY,22/10/2015,Crime Higher,Legal Aid Fund,FARADAYS SOLICITORS LTD,141943385,"127,029.30 ",Legal Aid Payment Crime Higher
MINISTRY OF JUSTICE,LEGAL AID AGENCY,28/10/2015,Crime Lower,Legal Aid Fund,MARTIN MURRAY & ASSOCIATES,142018870,"77,800.00 ",Legal Aid Payment Crime Lower
MINISTRY OF JUSTICE,LEGAL AID AGENCY,07/10/2015,Crime Higher,Legal Aid Fund,GEOFFREY PAYNE,141737457,"41,802.08 ",Legal Aid Payment Crime Higher
MINISTRY OF JUSTICE,LEGAL AID AGENCY,14/10/2015,Civil Representation,Legal Aid Fund,LACEYS,141870050,"33,587.24 ",Legal Aid Payment Civil Representation
MINISTRY OF JUSTICE,LEGAL AID AGENCY,28/10/2015,Crime Lower,Legal Aid Fund,TRANTERS CRIMINAL LAW PRACTICE,142019131,"29,000.00 ",Legal Aid Payment Crime Lower
MINISTRY OF JUSTICE,LEGAL AID AGENCY,28/10/2015,Legal Help,Legal Aid Fund,WILSON SOLICITORS LLP,142011642,"32,442.00 ",Legal Aid Payment Legal Help
MINISTRY OF JUSTICE,LEGAL AID AGENCY,28/10/2015,Crime Lower,Legal Aid Fund,LESLIE FRANKS SOLICITORS,142019618,"77,589.00 ",Legal Aid Payment Crime Lower
MINISTRY OF JUSTICE,LEGAL AID AGENCY,28/10/2015,Crime Lower,Legal Aid Fund,SWAIN & CO SOLICITORS LLP,142019180,"34,500.00 ",Legal Aid Payment Crime Lower
MINISTRY OF JUSTICE,LEGAL AID AGENCY,28/10/2015,Crime Lower,Legal Aid Fund,BHATIA BEST LTD,142018732,"100,000.00 ",Legal Aid Payment Crime Lower
MINISTRY OF JUSTICE,LEGAL AID AGENCY,22/10/2015,Crime Higher,Legal Aid Fund,GUDRUN YOUNG,141922098,"37,920.72 ",Legal Aid Payment Crime Higher
MINISTRY OF JUSTICE,LEGAL AID AGENCY,07/10/2015,Crime Higher,Legal Aid Fund,J D SOLICITORS,141729036,"65,378.40 ",Legal Aid Payment Crime Higher
MINISTRY OF JUSTICE,LEGAL AID AGENCY,14/10/2015,Crime Higher,Legal Aid Fund,ST LAW  SOLICITORS LTD,141867573,"26,580.71 ",Legal Aid Payment Crime Higher
MINISTRY OF JUSTICE,LEGAL AID AGENCY,22/10/2015,Crime Higher,Legal Aid Fund,JOHN M ASPINALL QC,141894494,"48,800.35 ",Legal Aid Payment Crime Higher
MINISTRY OF JUSTICE,LEGAL AID AGENCY,28/10/2015,Crime Lower,Legal Aid Fund,OLLIERS,142019812,"45,148.00 ",Legal Aid Payment Crime Lower
MINISTRY OF JUSTICE,LEGAL AID AGENCY,28/10/2015,Legal Help,Legal Aid Fund,DUNCAN LEWIS,141990069,"83,000.00 ",Legal Aid Payment Legal Help
MINISTRY OF JUSTICE,LEGAL AID AGENCY,28/10/2015,Crime Higher,Legal Aid Fund,CARR & CO ,142021375,"34,347.50 ",Legal Aid Payment Crime Higher
MINISTRY OF JUSTICE,LEGAL AID AGENCY,26/10/2015,Crime Higher,Legal Aid Fund,NAEEM MIAN,141956463,"47,840.04 ",Legal Aid Payment Crime Higher
MINISTRY OF JUSTICE,LEGAL AID AGENCY,07/10/2015,Civil Representation,Legal Aid Fund,QUALITYSOLICITORS JONES ROBERTSON,141748308,"31,834.21 ",Legal Aid Payment Civil Representation
MINISTRY OF JUSTICE,LEGAL AID AGENCY,22/10/2015,Crime Higher,Legal Aid Fund,MALLOY & BARRY,141895170,"47,171.45 ",Legal Aid Payment Crime Higher
MINISTRY OF JUSTICE,LEGAL AID AGENCY,22/10/2015,Crime Higher,Legal Aid Fund,"TANG,BENTLEY & JACKSON LIMITED",141882028,"90,040.77 ",Legal Aid Payment Crime Higher
MINISTRY OF JUSTICE,LEGAL AID AGENCY,28/10/2015,Crime Higher,Legal Aid Fund,DEXTER HENRY & CO,141971247,"26,451.37 ",Legal Aid Payment Crime Higher
MINISTRY OF JUSTICE,LEGAL AID AGENCY,14/10/2015,Civil Representation,Legal Aid Fund,FDR LAW,141861360,"36,963.36 ",Legal Aid Payment Civil Representation
MINISTRY OF JUSTICE,LEGAL AID AGENCY,22/10/2015,Crime Higher,Legal Aid Fund,LAM & MEERABUX SOLICITORS,141882049,"44,301.07 ",Legal Aid Payment Crime Higher
MINISTRY OF JUSTICE,LEGAL AID AGENCY,14/10/2015,Crime Higher,Legal Aid Fund,PREMIER LAW,141866951,"41,321.96 ",Legal Aid Payment Crime Higher
MINISTRY OF JUSTICE,LEGAL AID AGENCY,22/10/2015,Crime Higher,Legal Aid Fund,STOKOE PARTNERSHIP,141942880,"26,893.52 ",Legal Aid Payment Crime Higher
MINISTRY OF JUSTICE,LEGAL AID AGENCY,28/10/2015,Crime Lower,Legal Aid Fund,ROLAND ROBINSONS AND FENTONS LLP,142019834,"26,938.00 ",Legal Aid Payment Crime Lower
MINISTRY OF JUSTICE,LEGAL AID AGENCY,14/10/2015,Civil Representation,Legal Aid Fund,HEANEY WATSON LTD,141870542,"27,258.03 ",Legal Aid Payment Civil Representation
MINISTRY OF JUSTICE,LEGAL AID AGENCY,28/10/2015,Legal Help,Legal Aid Fund,BARNES HARRILD & DYER,142018436,"25,927.00 ",Legal Aid Payment Legal Help
MINISTRY OF JUSTICE,LEGAL AID AGENCY,22/10/2015,Crime Higher,Legal Aid Fund,STEPHEN LICKRISH & ASSOCIATES LTD,141922662,"29,664.55 ",Legal Aid Payment Crime Higher
MINISTRY OF JUSTICE,LEGAL AID AGENCY,28/10/2015,Crime Lower,Legal Aid Fund,HINE SOLICITORS,142020112,"33,346.00 ",Legal Aid Payment Crime Lower
MINISTRY OF JUSTICE,LEGAL AID AGENCY,28/10/2015,Crime Lower,Legal Aid Fund,JERMAN SAMUELS & PEARSON LLP,142018794,"25,500.00 ",Legal Aid Payment Crime Lower
MINISTRY OF JUSTICE,LEGAL AID AGENCY,28/10/2015,Crime Lower,Legal Aid Fund,TUCKERS SOLICITORS LLP,142018925,"33,000.00 ",Legal Aid Payment Crime Lower
MINISTRY OF JUSTICE,LEGAL AID AGENCY,22/10/2015,Crime Higher,Legal Aid Fund,LESLEY P MANLEY,141944096,"34,066.87 ",Legal Aid Payment Crime Higher
MINISTRY OF JUSTICE,LEGAL AID AGENCY,28/10/2015,Crime Lower,Legal Aid Fund,TILLY BAILEY & IRVINE LLP,142018994,"39,700.00 ",Legal Aid Payment Crime Lower
MINISTRY OF JUSTICE,LEGAL AID AGENCY,26/10/2015,Crime Higher,Legal Aid Fund,BLACKFORDS LLP,141956199,"84,262.39 ",Legal Aid Payment Crime Higher
MINISTRY OF JUSTICE,LEGAL AID AGENCY,28/10/2015,Crime Lower,Legal Aid Fund,SEDGWICK CHUDLEIGH MCKENN SOLICITORS,142019386,"33,928.00 ",Legal Aid Payment Crime Lower
MINISTRY OF JUSTICE,LEGAL AID AGENCY,28/10/2015,Crime Higher,Legal Aid Fund,FOSTERS,141970698,"32,987.18 ",Legal Aid Payment Crime Higher
MINISTRY OF JUSTICE,LEGAL AID AGENCY,22/10/2015,Crime Higher,Legal Aid Fund,RAHMAN RAVELLI SOLICTORS LTD,141922805,"54,497.60 ",Legal Aid Payment Crime Higher
MINISTRY OF JUSTICE,LEGAL AID AGENCY,28/10/2015,Crime Lower,Legal Aid Fund,"O'NEILL, WRIGHT & NASH",142020034,"42,938.00 ",Legal Aid Payment Crime Lower
MINISTRY OF JUSTICE,LEGAL AID AGENCY,28/10/2015,Crime Lower,Legal Aid Fund,TEESSIDE LAW LTD,142020274,"45,774.00 ",Legal Aid Payment Crime Lower
MINISTRY OF JUSTICE,LEGAL AID AGENCY,07/10/2015,Civil Representation,Legal Aid Fund,RICHARD BEDDOE,141722900,"34,674.00 ",Legal Aid Payment Civil Representation
MINISTRY OF JUSTICE,LEGAL AID AGENCY,28/10/2015,Legal Help,Legal Aid Fund,BRIGHTON HOUSING TRUST,141991272,"37,284.00 ",Legal Aid Payment Legal Help
MINISTRY OF JUSTICE,LEGAL AID AGENCY,22/10/2015,Civil Representation,Legal Aid Fund,LAWRENCE & CO,141871160,"28,398.68 ",Legal Aid Payment Civil Representation
MINISTRY OF JUSTICE,LEGAL AID AGENCY,26/10/2015,Civil Representation,Legal Aid Fund,MASON BAGGOTT & GARTON,3000000317390022,"32,788.80 ",Legal Aid Payment Civil Representation
MINISTRY OF JUSTICE,LEGAL AID AGENCY,28/10/2015,Crime Lower,Legal Aid Fund,SUSSEX DEFENCE SOLICITORS,142019175,"34,000.00 ",Legal Aid Payment Crime Lower
MINISTRY OF JUSTICE,LEGAL AID AGENCY,28/10/2015,Legal Help,Legal Aid Fund,SWITALSKI'S LTD,142018374,"73,100.00 ",Legal Aid Payment Legal Help
MINISTRY OF JUSTICE,LEGAL AID AGENCY,28/10/2015,Crime Lower,Legal Aid Fund,NIGEL WELLER & CO,142012501,"26,505.65 ",Legal Aid Payment Crime Lower
MINISTRY OF JUSTICE,LEGAL AID AGENCY,22/10/2015,Civil Representation,Legal Aid Fund,AFG LAW LIMITED,141899906,"25,353.44 ",Legal Aid Payment Civil Representation
MINISTRY OF JUSTICE,LEGAL AID AGENCY,28/10/2015,Crime Lower,Legal Aid Fund,STEVENS SOLICITORS,142019283,"53,700.00 ",Legal Aid Payment Crime Lower
MINISTRY OF JUSTICE,LEGAL AID AGENCY,28/10/2015,Crime Higher,Legal Aid Fund,PETER C ROUCH QC,141997708,"27,731.30 ",Legal Aid Payment Crime Higher
MINISTRY OF JUSTICE,LEGAL AID AGENCY,28/10/2015,Crime Lower,Legal Aid Fund,PENFOLD & MCPHERSON,142019908,"27,294.00 ",Legal Aid Payment Crime Lower
MINISTRY OF JUSTICE,LEGAL AID AGENCY,28/10/2015,Crime Lower,Legal Aid Fund,MCSORLEY LEWIS LAW LTD,142018714,"25,000.00 ",Legal Aid Payment Crime Lower
MINISTRY OF JUSTICE,LEGAL AID AGENCY,28/10/2015,Crime Lower,Legal Aid Fund,CRIMINAL DEFENCE MILTON KEYNES LTD,142019190,"38,500.00 ",Legal Aid Payment Crime Lower
MINISTRY OF JUSTICE,LEGAL AID AGENCY,28/10/2015,Crime Lower,Legal Aid Fund,INGRAMS SOLICITORS,142019065,"25,900.00 ",Legal Aid Payment Crime Lower
MINISTRY OF JUSTICE,LEGAL AID AGENCY,22/10/2015,Crime Higher,Legal Aid Fund,WOODS SOLICITORS,141881818,"63,504.44 ",Legal Aid Payment Crime Higher
MINISTRY OF JUSTICE,LEGAL AID AGENCY,28/10/2015,Crime Lower,Legal Aid Fund,ROBERT LIZAR,142019135,"40,100.00 ",Legal Aid Payment Crime Lower
MINISTRY OF JUSTICE,LEGAL AID AGENCY,14/10/2015,Crime Higher,Legal Aid Fund,TYRONE G SMITH,141808775,"46,662.44 ",Legal Aid Payment Crime Higher
MINISTRY OF JUSTICE,LEGAL AID AGENCY,22/10/2015,Crime Higher,Legal Aid Fund,T V EDWARDS LLP,141943444,"98,602.86 ",Legal Aid Payment Crime Higher
MINISTRY OF JUSTICE,LEGAL AID AGENCY,14/10/2015,Crime Higher,Legal Aid Fund,PETHERBRIDGE BASSRA SOLICITORS LTD,141808183,"54,497.60 ",Legal Aid Payment Crime Higher
MINISTRY OF JUSTICE,LEGAL AID AGENCY,28/10/2015,Crime Lower,Legal Aid Fund,LEVY & CO SOLICITORS LLP,142018795,"42,100.00 ",Legal Aid Payment Crime Lower
MINISTRY OF JUSTICE,LEGAL AID AGENCY,07/10/2015,Crime Higher,Legal Aid Fund,BISHOP & LIGHT SOLICITORS ,141794715,"72,775.73 ",Legal Aid Payment Crime Higher
MINISTRY OF JUSTICE,LEGAL AID AGENCY,28/10/2015,Crime Higher,Legal Aid Fund,NARINDER S SEKHON,141998184,"29,407.13 ",Legal Aid Payment Crime Higher
MINISTRY OF JUSTICE,LEGAL AID AGENCY,28/10/2015,Crime Lower,Legal Aid Fund,ALLEN HOOLE SOLICITORS ,142019239,"43,600.00 ",Legal Aid Payment Crime Lower
MINISTRY OF JUSTICE,LEGAL AID AGENCY,28/10/2015,Civil Representation,Legal Aid Fund,PAUL M STOREY QC,141988929,"39,171.60 ",Legal Aid Payment Civil Representation
MINISTRY OF JUSTICE,LEGAL AID AGENCY,07/10/2015,Civil Representation,Legal Aid Fund,H JONATHAN FURNESS QC,141197642,"35,934.20 ",Legal Aid Payment Civil Representation
MINISTRY OF JUSTICE,LEGAL AID AGENCY,28/10/2015,Civil Representation,Legal Aid Fund,PEPPERELLS SOLICITORS,141989568,"55,695.73 ",Legal Aid Payment Civil Representation
MINISTRY OF JUSTICE,LEGAL AID AGENCY,22/10/2015,Crime Higher,Legal Aid Fund,DPP LAW LTD,141882038,"78,473.22 ",Legal Aid Payment Crime Higher
MINISTRY OF JUSTICE,LEGAL AID AGENCY,14/10/2015,Crime Higher,Legal Aid Fund,STUART MILLER SOLICITORS LTD,141823236,"51,231.22 ",Legal Aid Payment Crime Higher
MINISTRY OF JUSTICE,LEGAL AID AGENCY,14/10/2015,Civil Representation,Legal Aid Fund,RICHARD M HUNT,141788533,"35,640.00 ",Legal Aid Payment Civil Representation
MINISTRY OF JUSTICE,LEGAL AID AGENCY,14/10/2015,Crime Higher,Legal Aid Fund,FOSTERS,141867928,"119,065.20 ",Legal Aid Payment Crime Higher
MINISTRY OF JUSTICE,LEGAL AID AGENCY,14/10/2015,Crime Higher,Legal Aid Fund,BROADBENTS SOLICITORS LLP,141867543,"38,775.84 ",Legal Aid Payment Crime Higher
MINISTRY OF JUSTICE,LEGAL AID AGENCY,07/10/2015,Crime Higher,Legal Aid Fund,STEPHEN F HARVEY QC,141729292,"47,666.86 ",Legal Aid Payment Crime Higher
MINISTRY OF JUSTICE,LEGAL AID AGENCY,07/10/2015,Crime Higher,Legal Aid Fund,NEEDHAM POULIER LTD,141730087,"64,458.02 ",Legal Aid Payment Crime Higher
MINISTRY OF JUSTICE,LEGAL AID AGENCY,22/10/2015,Crime Higher,Legal Aid Fund,ACHOM & PARTNERS,141943917,"55,651.48 ",Legal Aid Payment Crime Higher
MINISTRY OF JUSTICE,LEGAL AID AGENCY,28/10/2015,Crime Lower,Legal Aid Fund,MCCORMACKS LAW,142020097,"32,802.00 ",Legal Aid Payment Crime Lower
MINISTRY OF JUSTICE,LEGAL AID AGENCY,14/10/2015,Crime Higher,Legal Aid Fund,SJ LAW SOLICITORS,141866865,"33,418.37 ",Legal Aid Payment Crime Higher
MINISTRY OF JUSTICE,LEGAL AID AGENCY,14/10/2015,Crime Higher,Legal Aid Fund,VEJA & CO LTD,141867797,"38,195.51 ",Legal Aid Payment Crime Higher
MINISTRY OF JUSTICE,LEGAL AID AGENCY,07/10/2015,Civil Representation,Legal Aid Fund,ATKINS HOPE SOLICITORS LIMITED,141722809,"50,346.54 ",Legal Aid Payment Civil Representation
MINISTRY OF JUSTICE,LEGAL AID AGENCY,22/10/2015,Crime Higher,Legal Aid Fund,BAILEY NICHOLSON GRAYSON,141882859,"29,664.55 ",Legal Aid Payment Crime Higher
MINISTRY OF JUSTICE,LEGAL AID AGENCY,28/10/2015,Crime Lower,Legal Aid Fund,FISHER COWE,142019513,"33,252.00 ",Legal Aid Payment Crime Lower
MINISTRY OF JUSTICE,LEGAL AID AGENCY,28/10/2015,Crime Lower,Legal Aid Fund,G T STEWART SOLICITORS,142020106,"34,395.00 ",Legal Aid Payment Crime Lower
MINISTRY OF JUSTICE,LEGAL AID AGENCY,28/10/2015,Legal Help,Legal Aid Fund,DAVID GRAY LLP,142018563,"46,730.00 ",Legal Aid Payment Legal Help
MINISTRY OF JUSTICE,LEGAL AID AGENCY,28/10/2015,Crime Lower,Legal Aid Fund,GWB HARTHILLS LLP,142019726,"33,092.00 ",Legal Aid Payment Crime Lower
MINISTRY OF JUSTICE,LEGAL AID AGENCY,26/10/2015,Crime Higher,Legal Aid Fund,LINSKILLS,141956129,"29,664.55 ",Legal Aid Payment Crime Higher
MINISTRY OF JUSTICE,LEGAL AID AGENCY,26/10/2015,Civil Representation,Legal Aid Fund,NICHOLAS W STONOR,3000000136730012,"28,684.80 ",Legal Aid Payment Civil Representation
MINISTRY OF JUSTICE,LEGAL AID AGENCY,28/10/2015,Crime Lower,Legal Aid Fund,KAIM TODNER SOLICITORS LIMITED,142019558,"48,275.00 ",Legal Aid Payment Crime Lower
MINISTRY OF JUSTICE,LEGAL AID AGENCY,28/10/2015,Crime Lower,Legal Aid Fund,HORSMAN SOLICITORS LTD,142019869,"31,787.00 ",Legal Aid Payment Crime Lower
MINISTRY OF JUSTICE,LEGAL AID AGENCY,28/10/2015,Crime Lower,Legal Aid Fund,KEMPS,142019784,"27,719.00 ",Legal Aid Payment Crime Lower
MINISTRY OF JUSTICE,LEGAL AID AGENCY,28/10/2015,Legal Help,Legal Aid Fund,WILSON SOLICITORS LLP,141989989,"216,200.00 ",Legal Aid Payment Legal Help
MINISTRY OF JUSTICE,LEGAL AID AGENCY,22/10/2015,Civil Representation,Legal Aid Fund,ANNE SPRATLING,141871255,"32,016.60 ",Legal Aid Payment Civil Representation
MINISTRY OF JUSTICE,LEGAL AID AGENCY,28/10/2015,Legal Help,Legal Aid Fund,J D SPICER ZEB,142018447,"30,424.00 ",Legal Aid Payment Legal Help
MINISTRY OF JUSTICE,LEGAL AID AGENCY,28/10/2015,Crime Lower,Legal Aid Fund,STEVENS SOLICITORS,142019284,"57,000.00 ",Legal Aid Payment Crime Lower
MINISTRY OF JUSTICE,LEGAL AID AGENCY,28/10/2015,Crime Lower,Legal Aid Fund,WILSON DEVONALD GRIFFITHS JOHN,142018712,"55,000.00 ",Legal Aid Payment Crime Lower
MINISTRY OF JUSTICE,LEGAL AID AGENCY,22/10/2015,Crime Higher,Legal Aid Fund,CHIVERS SOLICITORS,141881744,"54,497.60 ",Legal Aid Payment Crime Higher
MINISTRY OF JUSTICE,LEGAL AID AGENCY,28/10/2015,Crime Lower,Legal Aid Fund,PHILIP HANBY LTD T/A ANDREW JAY & CO,142019490,"34,092.00 ",Legal Aid Payment Crime Lower
MINISTRY OF JUSTICE,LEGAL AID AGENCY,07/10/2015,Crime Higher,Legal Aid Fund,RKN SOLICITORS LTD,141794641,"36,219.71 ",Legal Aid Payment Crime Higher
MINISTRY OF JUSTICE,LEGAL AID AGENCY,07/10/2015,Crime Higher,Legal Aid Fund,BALBIR SINGH,141795007,"42,733.56 ",Legal Aid Payment Crime Higher
MINISTRY OF JUSTICE,LEGAL AID AGENCY,07/10/2015,Crime Higher,Legal Aid Fund,AINSLEY HARRIS,141729321,"36,349.27 ",Legal Aid Payment Crime Higher
MINISTRY OF JUSTICE,LEGAL AID AGENCY,09/10/2015,Crime Lower,Legal Aid Fund,SHARMA LAW SOLICITORS,141803175,"25,991.00 ",Legal Aid Payment Crime Lower
MINISTRY OF JUSTICE,LEGAL AID AGENCY,22/10/2015,Crime Higher,Legal Aid Fund,BARK & CO,141944512,"58,953.35 ",Legal Aid Payment Crime Higher
MINISTRY OF JUSTICE,LEGAL AID AGENCY,28/10/2015,Crime Lower,Legal Aid Fund,S A LAW CHAMBERS SOLICITORS,142018833,"52,200.00 ",Legal Aid Payment Crime Lower
MINISTRY OF JUSTICE,LEGAL AID AGENCY,22/10/2015,Crime Higher,Legal Aid Fund,AIDAN WOODS & CO,141943648,"42,319.13 ",Legal Aid Payment Crime Higher
MINISTRY OF JUSTICE,LEGAL AID AGENCY,28/10/2015,Civil Representation,Legal Aid Fund,RICHARD BUDWORTH,141886529,"53,913.60 ",Legal Aid Payment Civil Representation
MINISTRY OF JUSTICE,LEGAL AID AGENCY,28/10/2015,Civil Representation,Legal Aid Fund,DAWSON CORNWELL,142029715,"25,744.00 ",Legal Aid Payment Civil Representation
MINISTRY OF JUSTICE,LEGAL AID AGENCY,28/10/2015,Crime Higher,Legal Aid Fund,CANTARIS LOCKE SOLICITORS,142020799,"49,729.07 ",Legal Aid Payment Crime Higher
MINISTRY OF JUSTICE,LEGAL AID AGENCY,14/10/2015,Crime Higher,Legal Aid Fund,CARTWRIGHT KING SOLICITORS,141822606,"28,927.67 ",Legal Aid Payment Crime Higher
MINISTRY OF JUSTICE,LEGAL AID AGENCY,22/10/2015,Crime Higher,Legal Aid Fund,M K LAW SOLICITORS LTD,141944510,"46,153.72 ",Legal Aid Payment Crime Higher
MINISTRY OF JUSTICE,LEGAL AID AGENCY,28/10/2015,Crime Lower,Legal Aid Fund,FRASER DAWBARNS LLP,142018799,"30,500.00 ",Legal Aid Payment Crime Lower
MINISTRY OF JUSTICE,LEGAL AID AGENCY,28/10/2015,Civil Representation,Legal Aid Fund,ANNA J WARTERS,141512427,"50,500.80 ",Legal Aid Payment Civil Representation
MINISTRY OF JUSTICE,LEGAL AID AGENCY,28/10/2015,Crime Lower,Legal Aid Fund,T V EDWARDS LLP,142018898,"100,000.00 ",Legal Aid Payment Crime Lower
MINISTRY OF JUSTICE,LEGAL AID AGENCY,28/10/2015,Crime Higher,Legal Aid Fund,I B B SOLICITORS,142033507,"41,836.24 ",Legal Aid Payment Crime Higher
MINISTRY OF JUSTICE,LEGAL AID AGENCY,22/10/2015,Crime Higher,Legal Aid Fund,HARRIS SOLICITORS,141944141,"70,744.02 ",Legal Aid Payment Crime Higher
MINISTRY OF JUSTICE,LEGAL AID AGENCY,28/10/2015,Crime Lower,Legal Aid Fund,KIRWANS,142019655,"67,139.00 ",Legal Aid Payment Crime Lower
MINISTRY OF JUSTICE,LEGAL AID AGENCY,28/10/2015,Crime Lower,Legal Aid Fund,NOBLE SOLICITORS,142018784,"92,000.00 ",Legal Aid Payment Crime Lower
MINISTRY OF JUSTICE,LEGAL AID AGENCY,07/10/2015,Crime Lower,Legal Aid Fund,JSP LAW LTD,141723019,"49,000.00 ",Legal Aid Payment Crime Lower
MINISTRY OF JUSTICE,LEGAL AID AGENCY,28/10/2015,Civil Representation,Legal Aid Fund,CLARE A C DILLON,142008031,"26,784.00 ",Legal Aid Payment Civil Representation
MINISTRY OF JUSTICE,LEGAL AID AGENCY,28/10/2015,Crime Lower,Legal Aid Fund,WELLS BURCOMBE LLP,142019499,"31,564.00 ",Legal Aid Payment Crime Lower
MINISTRY OF JUSTICE,LEGAL AID AGENCY,28/10/2015,Crime Lower,Legal Aid Fund,HILL TWINE,142020267,"26,121.00 ",Legal Aid Payment Crime Lower
MINISTRY OF JUSTICE,LEGAL AID AGENCY,28/10/2015,Crime Higher,Legal Aid Fund,KAMRANS SOLICITORS,141970931,"72,365.51 ",Legal Aid Payment Crime Higher
MINISTRY OF JUSTICE,LEGAL AID AGENCY,26/10/2015,Crime Higher,Legal Aid Fund,RICHARD DAWSON,141957956,"30,833.16 ",Legal Aid Payment Crime Higher
MINISTRY OF JUSTICE,LEGAL AID AGENCY,28/10/2015,Crime Lower,Legal Aid Fund,SANSBURY DOUGLAS,142019343,"54,000.00 ",Legal Aid Payment Crime Lower
MINISTRY OF JUSTICE,LEGAL AID AGENCY,22/10/2015,Crime Higher,Legal Aid Fund,QUINN MELVILLE,141886623,"29,067.29 ",Legal Aid Payment Crime Higher
MINISTRY OF JUSTICE,LEGAL AID AGENCY,28/10/2015,Crime Lower,Legal Aid Fund,ALBIN & CO LTD,142019206,"42,800.00 ",Legal Aid Payment Crime Lower
MINISTRY OF JUSTICE,LEGAL AID AGENCY,14/10/2015,Crime Higher,Legal Aid Fund,MUSTOE SHORTER SOLICITORS & ADVOCATES LLP,141847658,"61,835.34 ",Legal Aid Payment Crime Higher
MINISTRY OF JUSTICE,LEGAL AID AGENCY,28/10/2015,Crime Lower,Legal Aid Fund,BREYDONS SOLICITORS LTD,142020122,"25,437.00 ",Legal Aid Payment Crime Lower
MINISTRY OF JUSTICE,LEGAL AID AGENCY,14/10/2015,Crime Higher,Legal Aid Fund,RUPERT L E RUSSELL,141822370,"33,536.11 ",Legal Aid Payment Crime Higher
MINISTRY OF JUSTICE,LEGAL AID AGENCY,14/10/2015,Civil Representation,Legal Aid Fund,HELEN A LITTLE,141839124,"32,961.60 ",Legal Aid Payment Civil Representation
MINISTRY OF JUSTICE,LEGAL AID AGENCY,28/10/2015,Crime Lower,Legal Aid Fund,HINE SOLICITORS,142020116,"70,059.00 ",Legal Aid Payment Crime Lower
MINISTRY OF JUSTICE,LEGAL AID AGENCY,28/10/2015,Crime Lower,Legal Aid Fund,EBR ATTRIDGE LLP,142018860,"34,200.00 ",Legal Aid Payment Crime Lower
MINISTRY OF JUSTICE,LEGAL AID AGENCY,28/10/2015,Crime Lower,Legal Aid Fund,WELLS BURCOMBE LLP,142020126,"48,354.00 ",Legal Aid Payment Crime Lower
MINISTRY OF JUSTICE,LEGAL AID AGENCY,07/10/2015,Civil Representation,Legal Aid Fund,JASON M HADDEN,141734913,"36,879.48 ",Legal Aid Payment Civil Representation
MINISTRY OF JUSTICE,LEGAL AID AGENCY,28/10/2015,Crime Lower,Legal Aid Fund,GRECH GOODEN SOLICITORS LTD,142019435,"50,438.00 ",Legal Aid Payment Crime Lower
MINISTRY OF JUSTICE,LEGAL AID AGENCY,28/10/2015,Crime Higher,Legal Aid Fund,JEROME LYNCH QC,141997622,"41,842.20 ",Legal Aid Payment Crime Higher
MINISTRY OF JUSTICE,LEGAL AID AGENCY,07/10/2015,Civil Representation,Legal Aid Fund,RICHARD S HERMER QC,141761620,"39,829.25 ",Legal Aid Payment Civil Representation
MINISTRY OF JUSTICE,LEGAL AID AGENCY,07/10/2015,Crime Higher,Legal Aid Fund,S ORLANDO F POWNALL QC,141756003,"30,863.45 ",Legal Aid Payment Crime Higher
MINISTRY OF JUSTICE,LEGAL AID AGENCY,22/10/2015,Crime Higher,Legal Aid Fund,OWEN M EDWARDS,141881302,"29,787.79 ",Legal Aid Payment Crime Higher
MINISTRY OF JUSTICE,LEGAL AID AGENCY,28/10/2015,Crime Higher,Legal Aid Fund,MATTHEW J MCNIFF,141998541,"39,249.30 ",Legal Aid Payment Crime Higher
MINISTRY OF JUSTICE,LEGAL AID AGENCY,28/10/2015,Crime Lower,Legal Aid Fund,WESSEX SOLICITORS CHAMBERS,142019339,"60,000.00 ",Legal Aid Payment Crime Lower
MINISTRY OF JUSTICE,LEGAL AID AGENCY,14/10/2015,Civil Representation,Legal Aid Fund,STUART GORDON SOLICITORS,141799129,"41,891.80 ",Legal Aid Payment Civil Representation
MINISTRY OF JUSTICE,LEGAL AID AGENCY,14/10/2015,Civil Representation,Legal Aid Fund,GOODMAN RAY,141799993,"26,230.65 ",Legal Aid Payment Civil Representation
MINISTRY OF JUSTICE,LEGAL AID AGENCY,28/10/2015,Crime Higher,Legal Aid Fund,ADVICE WISE SOLICITORS,141971564,"49,729.07 ",Legal Aid Payment Crime Higher
MINISTRY OF JUSTICE,LEGAL AID AGENCY,26/10/2015,Civil Representation,Legal Aid Fund,SANDERSONS SOLICITORS LTD,3000000624320005,"30,364.91 ",Legal Aid Payment Civil Representation
MINISTRY OF JUSTICE,LEGAL AID AGENCY,28/10/2015,Crime Lower,Legal Aid Fund,NUMBER ONE LAW LLP,142020021,"39,797.00 ",Legal Aid Payment Crime Lower
MINISTRY OF JUSTICE,LEGAL AID AGENCY,28/10/2015,Crime Lower,Legal Aid Fund,LAWTONS SOLICITORS LTD,142018781,"45,700.00 ",Legal Aid Payment Crime Lower
MINISTRY OF JUSTICE,LEGAL AID AGENCY,28/10/2015,Legal Help,Legal Aid Fund,GLEDHILL SOLICITORS,142018230,"48,842.00 ",Legal Aid Payment Legal Help
MINISTRY OF JUSTICE,LEGAL AID AGENCY,14/10/2015,Crime Higher,Legal Aid Fund,COLIN C AYLOTT,141870693,"35,517.30 ",Legal Aid Payment Crime Higher
MINISTRY OF JUSTICE,LEGAL AID AGENCY,07/10/2015,Crime Higher,Legal Aid Fund,BINDMANS LLP,141762823,"73,711.98 ",Legal Aid Payment Crime Higher
MINISTRY OF JUSTICE,LEGAL AID AGENCY,14/10/2015,Crime Higher,Legal Aid Fund,SIMON BAKER,141871568,"68,235.90 ",Legal Aid Payment Crime Higher
MINISTRY OF JUSTICE,LEGAL AID AGENCY,14/10/2015,Crime Higher,Legal Aid Fund,WHITWORTH & GREEN SOLICITORS LTD,141867298,"42,171.38 ",Legal Aid Payment Crime Higher
MINISTRY OF JUSTICE,LEGAL AID AGENCY,22/10/2015,Crime Higher,Legal Aid Fund,KEITH P HADRILL,141944467,"35,854.56 ",Legal Aid Payment Crime Higher
MINISTRY OF JUSTICE,LEGAL AID AGENCY,28/10/2015,Crime Lower,Legal Aid Fund,ROBERTSON'S SOLICITORS,142019033,"32,100.00 ",Legal Aid Payment Crime Lower
MINISTRY OF JUSTICE,LEGAL AID AGENCY,07/10/2015,Civil Representation,Legal Aid Fund,MCCOOL PATTERSON HEMSI & CO,141745868,"34,912.53 ",Legal Aid Payment Civil Representation
MINISTRY OF JUSTICE,LEGAL AID AGENCY,14/10/2015,Crime Higher,Legal Aid Fund,STUART MILLER SOLICITORS LTD,141836214,"89,975.11 ",Legal Aid Payment Crime Higher
MINISTRY OF JUSTICE,LEGAL AID AGENCY,28/10/2015,Crime Lower,Legal Aid Fund,FMW LAW LTD,142018823,"47,000.00 ",Legal Aid Payment Crime Lower
MINISTRY OF JUSTICE,LEGAL AID AGENCY,28/10/2015,Crime Lower,Legal Aid Fund,REEDS SOLICITORS LTD,142019916,"62,716.00 ",Legal Aid Payment Crime Lower
MINISTRY OF JUSTICE,LEGAL AID AGENCY,14/10/2015,Crime Higher,Legal Aid Fund,S A LAW CHAMBERS SOLICITORS,141822356,"43,088.07 ",Legal Aid Payment Crime Higher
MINISTRY OF JUSTICE,LEGAL AID AGENCY,28/10/2015,Crime Higher,Legal Aid Fund,M R LAWS,141984582,"29,002.12 ",Legal Aid Payment Crime Higher
MINISTRY OF JUSTICE,LEGAL AID AGENCY,14/10/2015,Civil Representation,Legal Aid Fund,STUART GORDON SOLICITORS,141621880,"41,842.20 ",Legal Aid Payment Civil Representation
MINISTRY OF JUSTICE,LEGAL AID AGENCY,28/10/2015,Crime Lower,Legal Aid Fund,THE JOHNSON PARTNERSHIP,142018752,"210,000.00 ",Legal Aid Payment Crime Lower
MINISTRY OF JUSTICE,LEGAL AID AGENCY,28/10/2015,Civil Representation,Legal Aid Fund,SARAH L PRITCHARD,141887256,"29,430.00 ",Legal Aid Payment Civil Representation
MINISTRY OF JUSTICE,LEGAL AID AGENCY,22/10/2015,Civil Representation,Legal Aid Fund,LORNA G MEYER QC,141887599,"64,943.76 ",Legal Aid Payment Civil Representation
MINISTRY OF JUSTICE,LEGAL AID AGENCY,28/10/2015,Legal Help,Legal Aid Fund,QS JACKSON CANTER LTD,142018406,"32,776.00 ",Legal Aid Payment Legal Help
MINISTRY OF JUSTICE,LEGAL AID AGENCY,14/10/2015,Crime Higher,Legal Aid Fund,ROBERT LIZAR,141808041,"29,664.55 ",Legal Aid Payment Crime Higher
MINISTRY OF JUSTICE,LEGAL AID AGENCY,28/10/2015,Legal Help,Legal Aid Fund,JOHN FOWLERS LLP,142017873,"29,200.00 ",Legal Aid Payment Legal Help
MINISTRY OF JUSTICE,LEGAL AID AGENCY,28/10/2015,Crime Higher,Legal Aid Fund,DALLAS & RICHARDSON SOLICITORS,141970643,"47,108.71 ",Legal Aid Payment Crime Higher
MINISTRY OF JUSTICE,LEGAL AID AGENCY,22/10/2015,Crime Higher,Legal Aid Fund,BLACKFORDS LLP,141881985,"105,857.75 ",Legal Aid Payment Crime Higher
MINISTRY OF JUSTICE,LEGAL AID AGENCY,14/10/2015,Crime Higher,Legal Aid Fund,BIRDS SOLICITORS LTD,141841085,"26,267.90 ",Legal Aid Payment Crime Higher
MINISTRY OF JUSTICE,LEGAL AID AGENCY,14/10/2015,Civil Representation,Legal Aid Fund,STEPHENSONS SOLICITORS LLP,141804156,"25,995.67 ",Legal Aid Payment Civil Representation
MINISTRY OF JUSTICE,LEGAL AID AGENCY,28/10/2015,Civil Representation,Legal Aid Fund,ALEXA R STOREY-REA,141902613,"32,486.40 ",Legal Aid Payment Civil Representation
MINISTRY OF JUSTICE,LEGAL AID AGENCY,07/10/2015,Crime Higher,Legal Aid Fund,DJMS SOLICITORS LTD,141755678,"53,412.11 ",Legal Aid Payment Crime Higher
MINISTRY OF JUSTICE,LEGAL AID AGENCY,22/10/2015,Civil Representation,Legal Aid Fund,WILLSONS SOLICITORS,141912665,"26,544.46 ",Legal Aid Payment Civil Representation
MINISTRY OF JUSTICE,LEGAL AID AGENCY,07/10/2015,Civil Representation,Legal Aid Fund,WATKINS & GUNN,141656911,"50,999.50 ",Legal Aid Payment Civil Representation
MINISTRY OF JUSTICE,LEGAL AID AGENCY,28/10/2015,Crime Lower,Legal Aid Fund,LOUND MULRENAN SOLICITORS,142018939,"35,800.00 ",Legal Aid Payment Crime Lower
MINISTRY OF JUSTICE,LEGAL AID AGENCY,07/10/2015,Crime Lower,Legal Aid Fund,O'GARRA'S SOLICITORS,141750125,"40,687.92 ",Legal Aid Payment Crime Lower
MINISTRY OF JUSTICE,LEGAL AID AGENCY,14/10/2015,Crime Higher,Legal Aid Fund,ALAN P KENT QC,141867411,"43,049.06 ",Legal Aid Payment Crime Higher
MINISTRY OF JUSTICE,LEGAL AID AGENCY,28/10/2015,Legal Help,Legal Aid Fund,LAWRENCE LUPIN SOLICITORS LTD,142018446,"93,116.00 ",Legal Aid Payment Legal Help
MINISTRY OF JUSTICE,LEGAL AID AGENCY,28/10/2015,Crime Higher,Legal Aid Fund,KHAN SOLICITORS LTD,141970581,"58,953.35 ",Legal Aid Payment Crime Higher
MINISTRY OF JUSTICE,LEGAL AID AGENCY,14/10/2015,Civil Representation,Legal Aid Fund,MICHAEL D COLLARD,141798653,"25,345.57 ",Legal Aid Payment Civil Representation
MINISTRY OF JUSTICE,LEGAL AID AGENCY,28/10/2015,Crime Higher,Legal Aid Fund,GRAEME J WILSON,141984063,"27,077.64 ",Legal Aid Payment Crime Higher
MINISTRY OF JUSTICE,LEGAL AID AGENCY,22/10/2015,Crime Higher,Legal Aid Fund,JEROME LYNCH QC,141952064,"25,800.00 ",Legal Aid Payment Crime Higher
MINISTRY OF JUSTICE,LEGAL AID AGENCY,28/10/2015,Crime Lower,Legal Aid Fund,THE CASTLE PARTNERSHIP,142019162,"29,000.00 ",Legal Aid Payment Crime Lower
MINISTRY OF JUSTICE,LEGAL AID AGENCY,28/10/2015,Crime Lower,Legal Aid Fund,SMITH PARTNERSHIP,142018763,"33,300.00 ",Legal Aid Payment Crime Lower
MINISTRY OF JUSTICE,LEGAL AID AGENCY,28/10/2015,Legal Help,Legal Aid Fund,DUNCAN LEWIS,141990002,"268,400.00 ",Legal Aid Payment Legal Help
MINISTRY OF JUSTICE,LEGAL AID AGENCY,22/10/2015,Crime Higher,Legal Aid Fund,WILFORD SMITH & CO LTD,141900110,"41,164.88 ",Legal Aid Payment Crime Higher
MINISTRY OF JUSTICE,LEGAL AID AGENCY,14/10/2015,Crime Higher,Legal Aid Fund,DAVIES & JONES SOLICITORS,141823449,"51,634.56 ",Legal Aid Payment Crime Higher
MINISTRY OF JUSTICE,LEGAL AID AGENCY,28/10/2015,Legal Help,Legal Aid Fund,TRP SOLICITORS LTD,142017784,"26,600.00 ",Legal Aid Payment Legal Help
MINISTRY OF JUSTICE,LEGAL AID AGENCY,22/10/2015,Crime Higher,Legal Aid Fund,BLACKFORDS LLP,141881982,"89,975.11 ",Legal Aid Payment Crime Higher
MINISTRY OF JUSTICE,LEGAL AID AGENCY,28/10/2015,Crime Lower,Legal Aid Fund,SJ LAW SOLICITORS,142019586,"58,247.00 ",Legal Aid Payment Crime Lower
MINISTRY OF JUSTICE,LEGAL AID AGENCY,28/10/2015,Crime Lower,Legal Aid Fund,SAUNDERS SOLICITORS LTD,142018917,"25,700.00 ",Legal Aid Payment Crime Lower
MINISTRY OF JUSTICE,LEGAL AID AGENCY,28/10/2015,Crime Higher,Legal Aid Fund,"GAMMON,PIERCY & GAIGER",142021616,"29,664.55 ",Legal Aid Payment Crime Higher
MINISTRY OF JUSTICE,LEGAL AID AGENCY,22/10/2015,Legal Help,Legal Aid Fund,T. A. LAW,141935690,"38,111.30 ",Legal Aid Payment Legal Help
MINISTRY OF JUSTICE,LEGAL AID AGENCY,28/10/2015,Crime Lower,Legal Aid Fund,SMITH PARTNERSHIP,142018764,"27,000.00 ",Legal Aid Payment Crime Lower
MINISTRY OF JUSTICE,LEGAL AID AGENCY,28/10/2015,Crime Lower,Legal Aid Fund,MPR SOLICITORS LLP,142018932,"26,000.00 ",Legal Aid Payment Crime Lower
MINISTRY OF JUSTICE,LEGAL AID AGENCY,22/10/2015,Crime Higher,Legal Aid Fund,TUCKERS SOLICITORS LLP,141882016,"32,876.51 ",Legal Aid Payment Crime Higher
MINISTRY OF JUSTICE,LEGAL AID AGENCY,28/10/2015,Civil Representation,Legal Aid Fund,ELIZABETH MCGRATH,142008024,"44,161.20 ",Legal Aid Payment Civil Representation
MINISTRY OF JUSTICE,LEGAL AID AGENCY,28/10/2015,Crime Lower,Legal Aid Fund,STERNBERG REED SOLICITORS,142018899,"55,000.00 ",Legal Aid Payment Crime Lower
MINISTRY OF JUSTICE,LEGAL AID AGENCY,07/10/2015,Crime Higher,Legal Aid Fund,BRIAN RUSSELL,141794354,"30,060.24 ",Legal Aid Payment Crime Higher
MINISTRY OF JUSTICE,LEGAL AID AGENCY,14/10/2015,Crime Higher,Legal Aid Fund,LAWRENCES,141835381,"39,339.26 ",Legal Aid Payment Crime Higher
MINISTRY OF JUSTICE,LEGAL AID AGENCY,28/10/2015,Legal Help,Legal Aid Fund,LAWANA & CO,142017947,"61,800.00 ",Legal Aid Payment Legal Help
MINISTRY OF JUSTICE,LEGAL AID AGENCY,14/10/2015,Crime Higher,Legal Aid Fund,SONN MACMILLAN WALKER LTD,141836357,"67,897.03 ",Legal Aid Payment Crime Higher
MINISTRY OF JUSTICE,LEGAL AID AGENCY,28/10/2015,Crime Lower,Legal Aid Fund,ROWE SPARKES SOLICITORS LTD,142019184,"37,500.00 ",Legal Aid Payment Crime Lower
MINISTRY OF JUSTICE,LEGAL AID AGENCY,28/10/2015,Crime Lower,Legal Aid Fund,REEDS SOLICITORS LTD,142020280,"26,959.00 ",Legal Aid Payment Crime Lower
MINISTRY OF JUSTICE,LEGAL AID AGENCY,28/10/2015,Crime Higher,Legal Aid Fund,TAYLOR HALDANE BARLEX LLP,141984312,"27,133.69 ",Legal Aid Payment Crime Higher
MINISTRY OF JUSTICE,LEGAL AID AGENCY,28/10/2015,Crime Lower,Legal Aid Fund,MURRAY BRANKIN,142019361,"25,600.00 ",Legal Aid Payment Crime Lower
MINISTRY OF JUSTICE,LEGAL AID AGENCY,22/10/2015,Civil Representation,Legal Aid Fund,JACKSON QUINN,141911964,"37,799.31 ",Legal Aid Payment Civil Representation
MINISTRY OF JUSTICE,LEGAL AID AGENCY,28/10/2015,Crime Higher,Legal Aid Fund,BROOKLYN SOLICITORS,141984193,"35,732.79 ",Legal Aid Payment Crime Higher
MINISTRY OF JUSTICE,LEGAL AID AGENCY,28/10/2015,Crime Lower,Legal Aid Fund,NEEDHAM POULIER LTD,142019644,"34,859.00 ",Legal Aid Payment Crime Lower
MINISTRY OF JUSTICE,LEGAL AID AGENCY,28/10/2015,Crime Lower,Legal Aid Fund,K LEGAL SOLICITORS,142020186,"33,088.00 ",Legal Aid Payment Crime Lower
MINISTRY OF JUSTICE,LEGAL AID AGENCY,28/10/2015,Crime Lower,Legal Aid Fund,BERRY REDMOND GORDON & PENNEY LLP,142019947,"39,533.00 ",Legal Aid Payment Crime Lower
MINISTRY OF JUSTICE,LEGAL AID AGENCY,28/10/2015,Crime Lower,Legal Aid Fund,FORBES SOLICITORS,142019106,"28,400.00 ",Legal Aid Payment Crime Lower
MINISTRY OF JUSTICE,LEGAL AID AGENCY,28/10/2015,Crime Lower,Legal Aid Fund,STUART MILLER SOLICITORS LTD,142019615,"116,657.00 ",Legal Aid Payment Crime Lower
MINISTRY OF JUSTICE,LEGAL AID AGENCY,22/10/2015,Civil Representation,Legal Aid Fund,HCB WIDDOWS MASON LTD,141947710,"29,503.60 ",Legal Aid Payment Civil Representation
MINISTRY OF JUSTICE,LEGAL AID AGENCY,28/10/2015,Crime Lower,Legal Aid Fund,QUALITYSOLICITORS HPJV,142019402,"26,568.00 ",Legal Aid Payment Crime Lower
MINISTRY OF JUSTICE,LEGAL AID AGENCY,22/10/2015,Crime Higher,Legal Aid Fund,BREYDONS SOLICITORS LTD,141944413,"119,065.20 ",Legal Aid Payment Crime Higher
MINISTRY OF JUSTICE,LEGAL AID AGENCY,28/10/2015,Crime Lower,Legal Aid Fund,BLACKFORDS LLP,142019564,"51,860.00 ",Legal Aid Payment Crime Lower
MINISTRY OF JUSTICE,LEGAL AID AGENCY,28/10/2015,Crime Lower,Legal Aid Fund,RMNJ SOLICITORS,142019654,"28,633.00 ",Legal Aid Payment Crime Lower
MINISTRY OF JUSTICE,LEGAL AID AGENCY,28/10/2015,Crime Lower,Legal Aid Fund,HEALEY COLBON,142018783,"26,100.00 ",Legal Aid Payment Crime Lower
MINISTRY OF JUSTICE,LEGAL AID AGENCY,28/10/2015,Crime Lower,Legal Aid Fund,WATSON WOODHOUSE SOLICITORS LLP,142018975,"28,300.00 ",Legal Aid Payment Crime Lower
MINISTRY OF JUSTICE,LEGAL AID AGENCY,28/10/2015,Crime Lower,Legal Aid Fund,KENT DEFENCE,142019336,"33,500.00 ",Legal Aid Payment Crime Lower
MINISTRY OF JUSTICE,LEGAL AID AGENCY,28/10/2015,Civil Representation,Legal Aid Fund,LILIAS L ADAMSON,142033208,"27,167.88 ",Legal Aid Payment Civil Representation
MINISTRY OF JUSTICE,LEGAL AID AGENCY,14/10/2015,Civil Representation,Legal Aid Fund,ZERMANSKY & PARTNERS,141840960,"25,655.32 ",Legal Aid Payment Civil Representation
MINISTRY OF JUSTICE,LEGAL AID AGENCY,28/10/2015,Legal Help,Legal Aid Fund,HALLIDAY REEVES LAW FIRM,142018365,"27,014.00 ",Legal Aid Payment Legal Help
MINISTRY OF JUSTICE,LEGAL AID AGENCY,28/10/2015,Crime Lower,Legal Aid Fund,PALMERS CRIMINAL DEFENCE SOLICITORS,142019156,"30,000.00 ",Legal Aid Payment Crime Lower
MINISTRY OF JUSTICE,LEGAL AID AGENCY,28/10/2015,Crime Lower,Legal Aid Fund,RILEY HAYES & CO,142019329,"39,500.00 ",Legal Aid Payment Crime Lower
MINISTRY OF JUSTICE,LEGAL AID AGENCY,28/10/2015,Crime Lower,Legal Aid Fund,WOODS SOLICITORS,142019716,"29,065.00 ",Legal Aid Payment Crime Lower
MINISTRY OF JUSTICE,LEGAL AID AGENCY,28/10/2015,Crime Lower,Legal Aid Fund,DAVID GRAY LLP,142018990,"27,000.00 ",Legal Aid Payment Crime Lower
MINISTRY OF JUSTICE,LEGAL AID AGENCY,28/10/2015,Civil Representation,Legal Aid Fund,HARDINGTON HOGG,142009323,"35,160.03 ",Legal Aid Payment Civil Representation
MINISTRY OF JUSTICE,LEGAL AID AGENCY,07/10/2015,Crime Higher,Legal Aid Fund,RAHMAN RAVELLI SOLICTORS LTD,141761255,"154,637.76 ",Legal Aid Payment Crime Higher
MINISTRY OF JUSTICE,LEGAL AID AGENCY,28/10/2015,Crime Lower,Legal Aid Fund,MCGRATH & CO SOLICITORS,142019295,"25,000.00 ",Legal Aid Payment Crime Lower
MINISTRY OF JUSTICE,LEGAL AID AGENCY,22/10/2015,Crime Higher,Legal Aid Fund,TUCKERS SOLICITORS LLP,141943454,"89,975.11 ",Legal Aid Payment Crime Higher
MINISTRY OF JUSTICE,LEGAL AID AGENCY,14/10/2015,Crime Higher,Legal Aid Fund,DPP LAW LTD,141822088,"89,975.11 ",Legal Aid Payment Crime Higher
MINISTRY OF JUSTICE,LEGAL AID AGENCY,28/10/2015,Crime Lower,Legal Aid Fund,GURNEY HARDEN SOLICITORS,142019867,"25,522.00 ",Legal Aid Payment Crime Lower
MINISTRY OF JUSTICE,LEGAL AID AGENCY,28/10/2015,Legal Help,Legal Aid Fund,AASKELLS SOLICITORS & ADVOCATES,142018450,"31,315.00 ",Legal Aid Payment Legal Help
MINISTRY OF JUSTICE,LEGAL AID AGENCY,28/10/2015,Crime Lower,Legal Aid Fund,BIRNBERG PEIRCE LTD,142018911,"37,500.00 ",Legal Aid Payment Crime Lower
MINISTRY OF JUSTICE,LEGAL AID AGENCY,28/10/2015,Legal Help,Legal Aid Fund,THALIWAL & CO LTD,142018575,"36,361.00 ",Legal Aid Payment Legal Help
MINISTRY OF JUSTICE,LEGAL AID AGENCY,26/10/2015,Crime Higher,Legal Aid Fund,TAYLOR HALDANE BARLEX LLP,141956116,"57,712.69 ",Legal Aid Payment Crime Higher
MINISTRY OF JUSTICE,LEGAL AID AGENCY,28/10/2015,Crime Higher,Legal Aid Fund,JMW SOLICITORS LLP,141971717,"41,590.20 ",Legal Aid Payment Crime Higher
MINISTRY OF JUSTICE,LEGAL AID AGENCY,22/10/2015,Civil Representation,Legal Aid Fund,WARD HADAWAY,141950948,"27,970.51 ",Legal Aid Payment Civil Representation
MINISTRY OF JUSTICE,LEGAL AID AGENCY,28/10/2015,Crime Higher,Legal Aid Fund,SHARMA LAW SOLICITORS,141985064,"46,754.56 ",Legal Aid Payment Crime Higher
MINISTRY OF JUSTICE,LEGAL AID AGENCY,28/10/2015,Crime Lower,Legal Aid Fund,OWEN NASH & CO,142019310,"38,000.00 ",Legal Aid Payment Crime Lower
MINISTRY OF JUSTICE,LEGAL AID AGENCY,28/10/2015,Crime Lower,Legal Aid Fund,FORBES SOLICITORS,142019103,"31,200.00 ",Legal Aid Payment Crime Lower
MINISTRY OF JUSTICE,LEGAL AID AGENCY,28/10/2015,Civil Representation,Legal Aid Fund,JULIA CHEETHAM,141975985,"39,301.20 ",Legal Aid Payment Civil Representation
MINISTRY OF JUSTICE,LEGAL AID AGENCY,22/10/2015,Crime Higher,Legal Aid Fund,DPP LAW LTD,141943426,"88,334.26 ",Legal Aid Payment Crime Higher
MINISTRY OF JUSTICE,LEGAL AID AGENCY,28/10/2015,Crime Lower,Legal Aid Fund,USMANI KING LTD,142019504,"46,235.00 ",Legal Aid Payment Crime Lower
MINISTRY OF JUSTICE,LEGAL AID AGENCY,28/10/2015,Crime Lower,Legal Aid Fund,SMITH PARTNERSHIP,142019302,"28,700.00 ",Legal Aid Payment Crime Lower
MINISTRY OF JUSTICE,LEGAL AID AGENCY,28/10/2015,Crime Higher,Legal Aid Fund,NEIL F BAKI,141998526,"34,369.75 ",Legal Aid Payment Crime Higher
MINISTRY OF JUSTICE,LEGAL AID AGENCY,28/10/2015,Legal Help,Legal Aid Fund,QUALITY SOLICITORS CMHT,142018202,"55,730.00 ",Legal Aid Payment Legal Help
MINISTRY OF JUSTICE,LEGAL AID AGENCY,22/10/2015,Crime Higher,Legal Aid Fund,GITTINS MCDONALD,141882143,"29,015.06 ",Legal Aid Payment Crime Higher
MINISTRY OF JUSTICE,LEGAL AID AGENCY,07/10/2015,Crime Higher,Legal Aid Fund,BROOKLYN SOLICITORS,141767906,"76,844.59 ",Legal Aid Payment Crime Higher
MINISTRY OF JUSTICE,LEGAL AID AGENCY,07/10/2015,Civil Representation,Legal Aid Fund,DARREN F HOWE QC,3000000318790058,"57,542.18 ",Legal Aid Payment Civil Representation
MINISTRY OF JUSTICE,LEGAL AID AGENCY,14/10/2015,Crime Higher,Legal Aid Fund,CHRISTOPHER M HENLEY,141808360,"61,274.44 ",Legal Aid Payment Crime Higher
MINISTRY OF JUSTICE,LEGAL AID AGENCY,28/10/2015,Crime Lower,Legal Aid Fund,HUSSAIN SOLICITORS LTD,142019301,"50,000.00 ",Legal Aid Payment Crime Lower
MINISTRY OF JUSTICE,LEGAL AID AGENCY,07/10/2015,Crime Higher,Legal Aid Fund,FREEMANS SOLICITORS.,141768519,"72,144.86 ",Legal Aid Payment Crime Higher
MINISTRY OF JUSTICE,LEGAL AID AGENCY,28/10/2015,Crime Higher,Legal Aid Fund,HODGE JONES & ALLEN LLP,142022552,"28,440.00 ",Legal Aid Payment Crime Higher
MINISTRY OF JUSTICE,LEGAL AID AGENCY,14/10/2015,Civil Representation,Legal Aid Fund,PUBLIC LAW PROJECT,141854143,"132,605.19 ",Legal Aid Payment Civil Representation
MINISTRY OF JUSTICE,LEGAL AID AGENCY,22/10/2015,Civil Representation,Legal Aid Fund,W M B LAW LTD,141935588,"47,250.27 ",Legal Aid Payment Civil Representation
MINISTRY OF JUSTICE,LEGAL AID AGENCY,28/10/2015,Crime Lower,Legal Aid Fund,TUCKERS SOLICITORS LLP,142019298,"26,900.00 ",Legal Aid Payment Crime Lower
MINISTRY OF JUSTICE,LEGAL AID AGENCY,28/10/2015,Crime Lower,Legal Aid Fund,THE JOHNSON PARTNERSHIP,142019368,"41,600.00 ",Legal Aid Payment Crime Lower
MINISTRY OF JUSTICE,LEGAL AID AGENCY,28/10/2015,Legal Help,Legal Aid Fund,ABBOTSTONE LAW LLP,142012886,"34,822.00 ",Legal Aid Payment Legal Help
MINISTRY OF JUSTICE,LEGAL AID AGENCY,28/10/2015,Crime Higher,Legal Aid Fund,CARTER MOORE SOLICITORS LTD,141984987,"36,666.53 ",Legal Aid Payment Crime Higher
MINISTRY OF JUSTICE,LEGAL AID AGENCY,28/10/2015,Crime Lower,Legal Aid Fund,DUNCAN LEWIS,142019597,"50,993.00 ",Legal Aid Payment Crime Lower
MINISTRY OF JUSTICE,LEGAL AID AGENCY,28/10/2015,Crime Lower,Legal Aid Fund,QS JACKSON CANTER LTD,142020243,"49,631.00 ",Legal Aid Payment Crime Lower
MINISTRY OF JUSTICE,LEGAL AID AGENCY,07/10/2015,Crime Higher,Legal Aid Fund,TUCKERS SOLICITORS LLP,141769066,"89,975.11 ",Legal Aid Payment Crime Higher
MINISTRY OF JUSTICE,LEGAL AID AGENCY,14/10/2015,Crime Higher,Legal Aid Fund,VIRDEES SOLICITORS LTD,141866920,"32,766.38 ",Legal Aid Payment Crime Higher
MINISTRY OF JUSTICE,LEGAL AID AGENCY,22/10/2015,Crime Higher,Legal Aid Fund,SAUNDERS SOLICITORS LTD,141881765,"84,414.67 ",Legal Aid Payment Crime Higher
MINISTRY OF JUSTICE,LEGAL AID AGENCY,22/10/2015,Crime Higher,Legal Aid Fund,BARRETT & NELLIGAN SOLICITORS LTD,141908320,"36,563.78 ",Legal Aid Payment Crime Higher
MINISTRY OF JUSTICE,LEGAL AID AGENCY,28/10/2015,Crime Lower,Legal Aid Fund,DAVIES & JONES SOLICITORS,142018717,"33,600.00 ",Legal Aid Payment Crime Lower
MINISTRY OF JUSTICE,LEGAL AID AGENCY,28/10/2015,Crime Lower,Legal Aid Fund,KAIM TODNER SOLICITORS LIMITED,142019559,"31,868.00 ",Legal Aid Payment Crime Lower
MINISTRY OF JUSTICE,LEGAL AID AGENCY,26/10/2015,Civil Representation,Legal Aid Fund,RACHEL A LANGDALE QC,3000000136730011,"37,375.20 ",Legal Aid Payment Civil Representation
MINISTRY OF JUSTICE,LEGAL AID AGENCY,28/10/2015,Civil Representation,Legal Aid Fund,DUNCAN LEWIS,141990761,"38,079.67 ",Legal Aid Payment Civil Representation
MINISTRY OF JUSTICE,LEGAL AID AGENCY,28/10/2015,Legal Help,Legal Aid Fund,CREIGHTON & PARTNERS,142017984,"49,400.00 ",Legal Aid Payment Legal Help
MINISTRY OF JUSTICE,LEGAL AID AGENCY,28/10/2015,Civil Representation,Legal Aid Fund,ELIZABETH MCGRATH,141047903,"37,968.00 ",Legal Aid Payment Civil Representation
MINISTRY OF JUSTICE,LEGAL AID AGENCY,28/10/2015,Crime Higher,Legal Aid Fund,CHARLES A BOTT QC,141997585,"75,948.04 ",Legal Aid Payment Crime Higher
MINISTRY OF JUSTICE,LEGAL AID AGENCY,28/10/2015,Crime Lower,Legal Aid Fund,STEVENS SOLICITORS,142019290,"28,000.00 ",Legal Aid Payment Crime Lower
MINISTRY OF JUSTICE,LEGAL AID AGENCY,28/10/2015,Crime Lower,Legal Aid Fund,TAYLOR STREET SOLICITORS LLP,142019159,"110,000.00 ",Legal Aid Payment Crime Lower
MINISTRY OF JUSTICE,LEGAL AID AGENCY,28/10/2015,Legal Help,Legal Aid Fund,QS JACKSON CANTER LTD,142012296,"90,608.00 ",Legal Aid Payment Legal Help
MINISTRY OF JUSTICE,LEGAL AID AGENCY,28/10/2015,Legal Help,Legal Aid Fund,HOWE & CO ,142018492,"82,204.00 ",Legal Aid Payment Legal Help
MINISTRY OF JUSTICE,LEGAL AID AGENCY,28/10/2015,Crime Lower,Legal Aid Fund,BHATIA BEST LTD,142018736,"53,200.00 ",Legal Aid Payment Crime Lower
MINISTRY OF JUSTICE,LEGAL AID AGENCY,28/10/2015,Crime Lower,Legal Aid Fund,T S LAW LTD,142019360,"27,000.00 ",Legal Aid Payment Crime Lower
MINISTRY OF JUSTICE,LEGAL AID AGENCY,22/10/2015,Crime Higher,Legal Aid Fund,EBR ATTRIDGE LLP,141944055,"67,726.69 ",Legal Aid Payment Crime Higher
MINISTRY OF JUSTICE,LEGAL AID AGENCY,07/10/2015,Crime Higher,Legal Aid Fund,PETER D MARSHALL,141742728,"25,364.11 ",Legal Aid Payment Crime Higher
MINISTRY OF JUSTICE,LEGAL AID AGENCY,22/10/2015,Crime Higher,Legal Aid Fund,K LEGAL SOLICITORS,141922905,"61,864.86 ",Legal Aid Payment Crime Higher
MINISTRY OF JUSTICE,LEGAL AID AGENCY,14/10/2015,Crime Higher,Legal Aid Fund,BASSETS,141823456,"36,362.15 ",Legal Aid Payment Crime Higher
MINISTRY OF JUSTICE,LEGAL AID AGENCY,26/10/2015,Crime Higher,Legal Aid Fund,SMITH PARTNERSHIP,141957873,"29,664.55 ",Legal Aid Payment Crime Higher
MINISTRY OF JUSTICE,LEGAL AID AGENCY,07/10/2015,Crime Higher,Legal Aid Fund,BOWDEN JONES SOLICITORS,141767919,"56,942.92 ",Legal Aid Payment Crime Higher
MINISTRY OF JUSTICE,LEGAL AID AGENCY,07/10/2015,Civil Representation,Legal Aid Fund,HANNAH M MARKHAM,141718571,"27,075.60 ",Legal Aid Payment Civil Representation
MINISTRY OF JUSTICE,LEGAL AID AGENCY,07/10/2015,Civil Representation,Legal Aid Fund,DAISY HUGHES,141623853,"35,942.39 ",Legal Aid Payment Civil Representation
MINISTRY OF JUSTICE,LEGAL AID AGENCY,28/10/2015,Crime Higher,Legal Aid Fund,SJ LAW SOLICITORS,141970627,"52,224.33 ",Legal Aid Payment Crime Higher
MINISTRY OF JUSTICE,LEGAL AID AGENCY,28/10/2015,Crime Higher,Legal Aid Fund,HEALEY KENYON MCATEER SOLICITORS,141971380,"56,530.45 ",Legal Aid Payment Crime Higher
MINISTRY OF JUSTICE,LEGAL AID AGENCY,28/10/2015,Legal Help,Legal Aid Fund,O'DONNELLS SOLICITORS,142018516,"32,571.00 ",Legal Aid Payment Legal Help
MINISTRY OF JUSTICE,LEGAL AID AGENCY,22/10/2015,Civil Representation,Legal Aid Fund,EDWARD HAYES LLP,141891328,"25,983.00 ",Legal Aid Payment Civil Representation
MINISTRY OF JUSTICE,LEGAL AID AGENCY,22/10/2015,Crime Higher,Legal Aid Fund,SALHAN & CO LTD,141882025,"88,334.26 ",Legal Aid Payment Crime Higher
MINISTRY OF JUSTICE,LEGAL AID AGENCY,26/10/2015,Crime Higher,Legal Aid Fund,RAHMAN RAVELLI SOLICTORS LTD,141956140,"58,953.35 ",Legal Aid Payment Crime Higher
MINISTRY OF JUSTICE,LEGAL AID AGENCY,28/10/2015,Crime Lower,Legal Aid Fund,CLIVE REES & ASSOCIATES,142018713,"25,000.00 ",Legal Aid Payment Crime Lower
MINISTRY OF JUSTICE,LEGAL AID AGENCY,28/10/2015,Crime Lower,Legal Aid Fund,VICKERS & CO INC BERRI'S SOLICITORS,142019636,"36,963.00 ",Legal Aid Payment Crime Lower
MINISTRY OF JUSTICE,LEGAL AID AGENCY,07/10/2015,Crime Higher,Legal Aid Fund,RH LAW LLP,141768719,"65,468.54 ",Legal Aid Payment Crime Higher
MINISTRY OF JUSTICE,LEGAL AID AGENCY,22/10/2015,Crime Higher,Legal Aid Fund,MARK WATSON ,141895459,"35,196.53 ",Legal Aid Payment Crime Higher
MINISTRY OF JUSTICE,LEGAL AID AGENCY,14/10/2015,Civil Representation,Legal Aid Fund,PHILCOX GRAY & CO,141635432,"32,108.11 ",Legal Aid Payment Civil Representation
MINISTRY OF JUSTICE,LEGAL AID AGENCY,07/10/2015,Crime Higher,Legal Aid Fund,WOODS SOLICITORS,141742257,"98,602.86 ",Legal Aid Payment Crime Higher
MINISTRY OF JUSTICE,LEGAL AID AGENCY,28/10/2015,Crime Lower,Legal Aid Fund,J D SPICER ZEB,142019578,"75,207.00 ",Legal Aid Payment Crime Lower
MINISTRY OF JUSTICE,LEGAL AID AGENCY,22/10/2015,Crime Higher,Legal Aid Fund,YASMIN & SHAID SOLICITORS LTD,141943434,"107,574.07 ",Legal Aid Payment Crime Higher
MINISTRY OF JUSTICE,LEGAL AID AGENCY,22/10/2015,Crime Higher,Legal Aid Fund,STOKOE PARTNERSHIP,141882256,"49,334.39 ",Legal Aid Payment Crime Higher
MINISTRY OF JUSTICE,LEGAL AID AGENCY,28/10/2015,Crime Higher,Legal Aid Fund,SANSBURY DOUGLAS,142022631,"37,236.32 ",Legal Aid Payment Crime Higher
MINISTRY OF JUSTICE,LEGAL AID AGENCY,22/10/2015,Crime Higher,Legal Aid Fund,PACE LEGAL SERVICES LTD,141882212,"105,857.93 ",Legal Aid Payment Crime Higher
MINISTRY OF JUSTICE,LEGAL AID AGENCY,28/10/2015,Crime Higher,Legal Aid Fund,DOBSONS,141997793,"58,540.45 ",Legal Aid Payment Crime Higher
MINISTRY OF JUSTICE,LEGAL AID AGENCY,14/10/2015,Crime Higher,Legal Aid Fund,GARSTANGS BURROWS BUSSIN LLP,141808341,"34,666.73 ",Legal Aid Payment Crime Higher
MINISTRY OF JUSTICE,LEGAL AID AGENCY,14/10/2015,Civil Representation,Legal Aid Fund,ROWBERRY MORRIS THAMES VALLEY LLP,141827306,"27,314.08 ",Legal Aid Payment Civil Representation
MINISTRY OF JUSTICE,LEGAL AID AGENCY,28/10/2015,Crime Lower,Legal Aid Fund,NORRIE WAITE & SLATER,142019019,"39,100.00 ",Legal Aid Payment Crime Lower
MINISTRY OF JUSTICE,LEGAL AID AGENCY,28/10/2015,Crime Lower,Legal Aid Fund,YARWOOD & STUBLEY,142018971,"26,100.00 ",Legal Aid Payment Crime Lower
MINISTRY OF JUSTICE,LEGAL AID AGENCY,28/10/2015,Crime Lower,Legal Aid Fund,ROSS SOLICITORS LTD,142019255,"35,000.00 ",Legal Aid Payment Crime Lower
MINISTRY OF JUSTICE,LEGAL AID AGENCY,28/10/2015,Crime Lower,Legal Aid Fund,RICHARDSON SOLICITORS,142019171,"27,700.00 ",Legal Aid Payment Crime Lower
MINISTRY OF JUSTICE,LEGAL AID AGENCY,28/10/2015,Crime Lower,Legal Aid Fund,MANN & CO SOLICITORS,142019278,"27,600.00 ",Legal Aid Payment Crime Lower
MINISTRY OF JUSTICE,LEGAL AID AGENCY,28/10/2015,Crime Higher,Legal Aid Fund,BIVONAS LLP,141988600,"34,760.82 ",Legal Aid Payment Crime Higher
MINISTRY OF JUSTICE,LEGAL AID AGENCY,07/10/2015,Civil Representation,Legal Aid Fund,THE FAMILY LAW CO BY HARTNELL CHANOT,141718965,"25,745.87 ",Legal Aid Payment Civil Representation
MINISTRY OF JUSTICE,LEGAL AID AGENCY,14/10/2015,Crime Higher,Legal Aid Fund,ENNON & CO,141846887,"44,963.12 ",Legal Aid Payment Crime Higher
MINISTRY OF JUSTICE,LEGAL AID AGENCY,26/10/2015,Crime Higher,Legal Aid Fund,YATES ARDERN,141956334,"49,729.07 ",Legal Aid Payment Crime Higher
MINISTRY OF JUSTICE,LEGAL AID AGENCY,28/10/2015,Crime Lower,Legal Aid Fund,CRIMINAL DEFENCE SOLICITORS,142018924,"48,200.00 ",Legal Aid Payment Crime Lower
MINISTRY OF JUSTICE,LEGAL AID AGENCY,22/10/2015,Crime Higher,Legal Aid Fund,CLAIRE MATTHEWS,141943099,"57,758.75 ",Legal Aid Payment Crime Higher
MINISTRY OF JUSTICE,LEGAL AID AGENCY,28/10/2015,Crime Lower,Legal Aid Fund,DJMS SOLICITORS LTD,142019680,"38,083.00 ",Legal Aid Payment Crime Lower
MINISTRY OF JUSTICE,LEGAL AID AGENCY,28/10/2015,Crime Lower,Legal Aid Fund,DOBSONS,142018864,"30,400.00 ",Legal Aid Payment Crime Lower
MINISTRY OF JUSTICE,LEGAL AID AGENCY,28/10/2015,Crime Lower,Legal Aid Fund,TRINITY ADVOCATES,142019337,"27,100.00 ",Legal Aid Payment Crime Lower
MINISTRY OF JUSTICE,LEGAL AID AGENCY,22/10/2015,Civil Representation,Legal Aid Fund,MACKINTOSH LAW,141917626,"25,042.50 ",Legal Aid Payment Civil Representation
MINISTRY OF JUSTICE,LEGAL AID AGENCY,14/10/2015,Crime Higher,Legal Aid Fund,POWELL SPENCER AND PARTNERS,141823417,"29,292.86 ",Legal Aid Payment Crime Higher
MINISTRY OF JUSTICE,LEGAL AID AGENCY,28/10/2015,Crime Lower,Legal Aid Fund,BAILEY NICHOLSON GRAYSON,142018832,"35,000.00 ",Legal Aid Payment Crime Lower
MINISTRY OF JUSTICE,LEGAL AID AGENCY,14/10/2015,Crime Higher,Legal Aid Fund,VIRDEES SOLICITORS LTD,141836423,"118,323.43 ",Legal Aid Payment Crime Higher
MINISTRY OF JUSTICE,LEGAL AID AGENCY,22/10/2015,Crime Higher,Legal Aid Fund,S SATHA & CO LTD,141881870,"98,602.86 ",Legal Aid Payment Crime Higher
MINISTRY OF JUSTICE,LEGAL AID AGENCY,28/10/2015,Crime Lower,Legal Aid Fund,BOBBETTS MACKAN,142019236,"44,000.00 ",Legal Aid Payment Crime Lower
MINISTRY OF JUSTICE,LEGAL AID AGENCY,28/10/2015,Crime Lower,Legal Aid Fund,VHS FLETCHERS,142018756,"66,500.00 ",Legal Aid Payment Crime Lower
MINISTRY OF JUSTICE,LEGAL AID AGENCY,28/10/2015,Crime Lower,Legal Aid Fund,RODNEY WARREN & CO LTD,142019149,"31,000.00 ",Legal Aid Payment Crime Lower
MINISTRY OF JUSTICE,LEGAL AID AGENCY,14/10/2015,Civil Representation,Legal Aid Fund,LEWIS DONNELLY,141826025,"29,430.00 ",Legal Aid Payment Civil Representation
MINISTRY OF JUSTICE,LEGAL AID AGENCY,28/10/2015,Crime Lower,Legal Aid Fund,DJMS SOLICITORS LTD,142020252,"28,789.00 ",Legal Aid Payment Crime Lower
MINISTRY OF JUSTICE,LEGAL AID AGENCY,28/10/2015,Crime Lower,Legal Aid Fund,IRVINE THANVI NATAS SOLICITORS,142018841,"58,000.00 ",Legal Aid Payment Crime Lower
MINISTRY OF JUSTICE,LEGAL AID AGENCY,28/10/2015,Crime Lower,Legal Aid Fund,MCMILLAN WILLIAMS SOLICITORS LTD,142018866,"25,000.00 ",Legal Aid Payment Crime Lower
MINISTRY OF JUSTICE,LEGAL AID AGENCY,14/10/2015,Crime Higher,Legal Aid Fund,NATHANIEL D RUDOLF,141809267,"29,988.55 ",Legal Aid Payment Crime Higher
MINISTRY OF JUSTICE,LEGAL AID AGENCY,28/10/2015,Crime Higher,Legal Aid Fund,STEPHENSONS SOLICITORS LLP,141998491,"54,525.34 ",Legal Aid Payment Crime Higher
MINISTRY OF JUSTICE,LEGAL AID AGENCY,07/10/2015,Crime Higher,Legal Aid Fund,LEWIS NEDAS & CO,141730027,"37,322.94 ",Legal Aid Payment Crime Higher
MINISTRY OF JUSTICE,LEGAL AID AGENCY,22/10/2015,Civil Representation,Legal Aid Fund,LESLIE J SAMUELS QC,141874463,"31,018.68 ",Legal Aid Payment Civil Representation
MINISTRY OF JUSTICE,LEGAL AID AGENCY,28/10/2015,Crime Lower,Legal Aid Fund,COBAINS SOLICITORS,142019841,"27,599.00 ",Legal Aid Payment Crime Lower
MINISTRY OF JUSTICE,LEGAL AID AGENCY,28/10/2015,Legal Help,Legal Aid Fund,SWAIN & CO SOLICITORS LLP,142018144,"50,700.00 ",Legal Aid Payment Legal Help
MINISTRY OF JUSTICE,LEGAL AID AGENCY,07/10/2015,Crime Higher,Legal Aid Fund,LEVINS SOLICITORS,141767854,"29,941.95 ",Legal Aid Payment Crime Higher
MINISTRY OF JUSTICE,LEGAL AID AGENCY,28/10/2015,Crime Lower,Legal Aid Fund,BURTON COPELAND LLP,142019852,"45,520.00 ",Legal Aid Payment Crime Lower
MINISTRY OF JUSTICE,LEGAL AID AGENCY,28/10/2015,Crime Lower,Legal Aid Fund,ASHLEY SMITH & CO,142018910,"28,000.00 ",Legal Aid Payment Crime Lower
MINISTRY OF JUSTICE,LEGAL AID AGENCY,28/10/2015,Crime Lower,Legal Aid Fund,REEDS SOLICITORS LTD,142020281,"31,938.00 ",Legal Aid Payment Crime Lower
MINISTRY OF JUSTICE,LEGAL AID AGENCY,28/10/2015,Civil Representation,Legal Aid Fund,BHATIA BEST LTD,142028921,"27,184.61 ",Legal Aid Payment Civil Representation
MINISTRY OF JUSTICE,LEGAL AID AGENCY,07/10/2015,Civil Representation,Legal Aid Fund,MORRISON SPOWART,141750162,"30,775.32 ",Legal Aid Payment Civil Representation
MINISTRY OF JUSTICE,LEGAL AID AGENCY,28/10/2015,Crime Lower,Legal Aid Fund,HENNESSY & HAMMUDI,142019207,"50,000.00 ",Legal Aid Payment Crime Lower
MINISTRY OF JUSTICE,LEGAL AID AGENCY,28/10/2015,Crime Lower,Legal Aid Fund,REEVES  & CO SOLICITORS,142019868,"36,882.00 ",Legal Aid Payment Crime Lower
MINISTRY OF JUSTICE,LEGAL AID AGENCY,28/10/2015,Crime Lower,Legal Aid Fund,LAWRENCE & CO,142018922,"35,000.00 ",Legal Aid Payment Crime Lower
MINISTRY OF JUSTICE,LEGAL AID AGENCY,28/10/2015,Crime Lower,Legal Aid Fund,T S LAW LTD,142018900,"27,000.00 ",Legal Aid Payment Crime Lower
MINISTRY OF JUSTICE,LEGAL AID AGENCY,22/10/2015,Crime Higher,Legal Aid Fund,CARTER OSBORNE LTD,141943420,"76,818.24 ",Legal Aid Payment Crime Higher
MINISTRY OF JUSTICE,LEGAL AID AGENCY,22/10/2015,Crime Higher,Legal Aid Fund,BARRETT & NELLIGAN SOLICITORS LTD,141882202,"102,195.36 ",Legal Aid Payment Crime Higher
MINISTRY OF JUSTICE,LEGAL AID AGENCY,07/10/2015,Crime Higher,Legal Aid Fund,BRETT WILSON LLP,141767961,"39,263.80 ",Legal Aid Payment Crime Higher
MINISTRY OF JUSTICE,LEGAL AID AGENCY,14/10/2015,Crime Higher,Legal Aid Fund,REBECCA HERBERT,141830373,"64,400.00 ",Legal Aid Payment Crime Higher
MINISTRY OF JUSTICE,LEGAL AID AGENCY,28/10/2015,Crime Lower,Legal Aid Fund,MCLARTYS SOLICITORS,142018893,"27,500.00 ",Legal Aid Payment Crime Lower
MINISTRY OF JUSTICE,LEGAL AID AGENCY,14/10/2015,Crime Higher,Legal Aid Fund,RICHARD GRIFFITHS & CO,141822104,"73,837.29 ",Legal Aid Payment Crime Higher
MINISTRY OF JUSTICE,LEGAL AID AGENCY,26/10/2015,Crime Higher,Legal Aid Fund,O'KEEFFE SOLICITORS,141957148,"71,772.16 ",Legal Aid Payment Crime Higher
MINISTRY OF JUSTICE,LEGAL AID AGENCY,28/10/2015,Crime Lower,Legal Aid Fund,HARTHILLS,142019015,"36,600.00 ",Legal Aid Payment Crime Lower
MINISTRY OF JUSTICE,LEGAL AID AGENCY,22/10/2015,Crime Higher,Legal Aid Fund,REEDS SOLICITORS LTD,141881984,"107,970.13 ",Legal Aid Payment Crime Higher
MINISTRY OF JUSTICE,LEGAL AID AGENCY,28/10/2015,Crime Lower,Legal Aid Fund,GUNEY CLARK & RYAN LTD CO,142019602,"34,778.00 ",Legal Aid Payment Crime Lower
MINISTRY OF JUSTICE,LEGAL AID AGENCY,22/10/2015,Legal Help,Legal Aid Fund,SIMPSON MILLAR SOLICITORS LLP,141934608,"59,697.48 ",Legal Aid Payment Legal Help
MINISTRY OF JUSTICE,LEGAL AID AGENCY,14/10/2015,Civil Representation,Legal Aid Fund,BURTON & DYSON,141842030,"37,193.43 ",Legal Aid Payment Civil Representation
MINISTRY OF JUSTICE,LEGAL AID AGENCY,28/10/2015,Crime Lower,Legal Aid Fund,LANSBURY WORTHINGTON,142018824,"71,700.00 ",Legal Aid Payment Crime Lower
MINISTRY OF JUSTICE,LEGAL AID AGENCY,28/10/2015,Crime Lower,Legal Aid Fund,ALLEN HOOLE SOLICITORS ,142019251,"36,000.00 ",Legal Aid Payment Crime Lower
MINISTRY OF JUSTICE,LEGAL AID AGENCY,28/10/2015,Civil Representation,Legal Aid Fund,BURY & WALKERS LLP,141989002,"46,058.32 ",Legal Aid Payment Civil Representation
MINISTRY OF JUSTICE,LEGAL AID AGENCY,22/10/2015,Crime Higher,Legal Aid Fund,THE CENTRAL LAW PRACTICE,141943819,"44,620.50 ",Legal Aid Payment Crime Higher
MINISTRY OF JUSTICE,LEGAL AID AGENCY,22/10/2015,Crime Higher,Legal Aid Fund,BARRY I KOGAN,141882395,"48,758.88 ",Legal Aid Payment Crime Higher
MINISTRY OF JUSTICE,LEGAL AID AGENCY,28/10/2015,Legal Help,Legal Aid Fund,DUNCAN LEWIS,141990000,"400,000.00 ",Legal Aid Payment Legal Help
MINISTRY OF JUSTICE,LEGAL AID AGENCY,28/10/2015,Legal Help,Legal Aid Fund,BISON SOLICITORS LTD,142012810,"53,705.00 ",Legal Aid Payment Legal Help
MINISTRY OF JUSTICE,LEGAL AID AGENCY,14/10/2015,Crime Higher,Legal Aid Fund,HARRY POTTER,141809110,"33,480.48 ",Legal Aid Payment Crime Higher
MINISTRY OF JUSTICE,LEGAL AID AGENCY,14/10/2015,Crime Higher,Legal Aid Fund,STEPHEN FIDLER & CO,141808217,"33,421.68 ",Legal Aid Payment Crime Higher
MINISTRY OF JUSTICE,LEGAL AID AGENCY,22/10/2015,Crime Higher,Legal Aid Fund,FORBES SOLICITORS,141882163,"73,975.04 ",Legal Aid Payment Crime Higher
MINISTRY OF JUSTICE,LEGAL AID AGENCY,28/10/2015,Civil Representation,Legal Aid Fund,PEARSONS,141947581,"26,781.30 ",Legal Aid Payment Civil Representation
MINISTRY OF JUSTICE,LEGAL AID AGENCY,22/10/2015,Crime Higher,Legal Aid Fund,LESLIE FRANKS SOLICITORS,141943381,"52,892.33 ",Legal Aid Payment Crime Higher
MINISTRY OF JUSTICE,LEGAL AID AGENCY,07/10/2015,Crime Higher,Legal Aid Fund,DAVID TAYLOR,141743299,"41,640.72 ",Legal Aid Payment Crime Higher
MINISTRY OF JUSTICE,LEGAL AID AGENCY,28/10/2015,Crime Lower,Legal Aid Fund,HODGE JONES & ALLEN LLP,142019614,"95,633.00 ",Legal Aid Payment Crime Lower
MINISTRY OF JUSTICE,LEGAL AID AGENCY,22/10/2015,Crime Higher,Legal Aid Fund,HUGHMANS,141922680,"56,748.27 ",Legal Aid Payment Crime Higher
MINISTRY OF JUSTICE,LEGAL AID AGENCY,28/10/2015,Legal Help,Legal Aid Fund,PARAGON LAW LTD,142018123,"40,000.00 ",Legal Aid Payment Legal Help
MINISTRY OF JUSTICE,LEGAL AID AGENCY,07/10/2015,Crime Higher,Legal Aid Fund,ASHMANS SOLICITORS,141756074,"54,810.00 ",Legal Aid Payment Crime Higher
MINISTRY OF JUSTICE,LEGAL AID AGENCY,28/10/2015,Crime Higher,Legal Aid Fund,HENNESSY & HAMMUDI,142012156,"40,839.12 ",Legal Aid Payment Crime Higher
MINISTRY OF JUSTICE,LEGAL AID AGENCY,22/10/2015,Crime Higher,Legal Aid Fund,G T STEWART SOLICITORS,141943449,"51,520.12 ",Legal Aid Payment Crime Higher
MINISTRY OF JUSTICE,LEGAL AID AGENCY,28/10/2015,Crime Lower,Legal Aid Fund,MARTIN MURRAY & ASSOCIATES,142019197,"47,300.00 ",Legal Aid Payment Crime Lower
MINISTRY OF JUSTICE,LEGAL AID AGENCY,22/10/2015,Crime Higher,Legal Aid Fund,NELSON GUEST & PARTNERS,141882082,"35,815.54 ",Legal Aid Payment Crime Higher
MINISTRY OF JUSTICE,LEGAL AID AGENCY,22/10/2015,Crime Higher,Legal Aid Fund,COBLEYS LLP,141943452,"84,800.59 ",Legal Aid Payment Crime Higher
MINISTRY OF JUSTICE,LEGAL AID AGENCY,28/10/2015,Crime Lower,Legal Aid Fund,ACA LAW LTD,142019595,"32,081.00 ",Legal Aid Payment Crime Lower
MINISTRY OF JUSTICE,LEGAL AID AGENCY,28/10/2015,Crime Lower,Legal Aid Fund,CARTWRIGHT CLARK LTD,142019904,"37,939.00 ",Legal Aid Payment Crime Lower
MINISTRY OF JUSTICE,LEGAL AID AGENCY,28/10/2015,Crime Higher,Legal Aid Fund,KANGS SOLICITORS,142013324,"33,060.96 ",Legal Aid Payment Crime Higher
MINISTRY OF JUSTICE,LEGAL AID AGENCY,14/10/2015,Crime Higher,Legal Aid Fund,PETER H M BINDER,141809494,"25,258.20 ",Legal Aid Payment Crime Higher
MINISTRY OF JUSTICE,LEGAL AID AGENCY,22/10/2015,Crime Higher,Legal Aid Fund,ABV SOLICITORS,141882203,"88,334.26 ",Legal Aid Payment Crime Higher
MINISTRY OF JUSTICE,LEGAL AID AGENCY,28/10/2015,Crime Lower,Legal Aid Fund,JSP LAW LTD,142020161,"62,570.00 ",Legal Aid Payment Crime Lower
MINISTRY OF JUSTICE,LEGAL AID AGENCY,22/10/2015,Crime Higher,Legal Aid Fund,ACA LAW LTD,141881969,"30,993.84 ",Legal Aid Payment Crime Higher
MINISTRY OF JUSTICE,LEGAL AID AGENCY,28/10/2015,Crime Lower,Legal Aid Fund,VHS FLETCHERS,142018758,"28,500.00 ",Legal Aid Payment Crime Lower
MINISTRY OF JUSTICE,LEGAL AID AGENCY,14/10/2015,Civil Representation,Legal Aid Fund,SIAN L M GOUGH,141861129,"30,462.51 ",Legal Aid Payment Civil Representation
MINISTRY OF JUSTICE,LEGAL AID AGENCY,22/10/2015,Crime Higher,Legal Aid Fund,TUCKERS SOLICITORS LLP,141882183,"105,857.75 ",Legal Aid Payment Crime Higher
MINISTRY OF JUSTICE,LEGAL AID AGENCY,28/10/2015,Crime Lower,Legal Aid Fund,STOCK MORAN & SWALWELL,142019076,"35,900.00 ",Legal Aid Payment Crime Lower
MINISTRY OF JUSTICE,LEGAL AID AGENCY,28/10/2015,Crime Lower,Legal Aid Fund,TUCKERS SOLICITORS LLP,142018920,"120,000.00 ",Legal Aid Payment Crime Lower
MINISTRY OF JUSTICE,LEGAL AID AGENCY,07/10/2015,Civil Representation,Legal Aid Fund,LORNA G MEYER QC,141717438,"57,998.10 ",Legal Aid Payment Civil Representation
MINISTRY OF JUSTICE,LEGAL AID AGENCY,28/10/2015,Civil Representation,Legal Aid Fund,CLIVE R STYLES,141901242,"27,167.88 ",Legal Aid Payment Civil Representation
MINISTRY OF JUSTICE,LEGAL AID AGENCY,22/10/2015,Crime Higher,Legal Aid Fund,TRANTERS CRIMINAL LAW PRACTICE,141907842,"47,998.38 ",Legal Aid Payment Crime Higher
MINISTRY OF JUSTICE,LEGAL AID AGENCY,28/10/2015,Crime Lower,Legal Aid Fund,MURRAYS SOLICITORS,142019745,"27,630.00 ",Legal Aid Payment Crime Lower
MINISTRY OF JUSTICE,LEGAL AID AGENCY,22/10/2015,Crime Higher,Legal Aid Fund,PAUL C WALKER,141895302,"27,077.64 ",Legal Aid Payment Crime Higher
MINISTRY OF JUSTICE,LEGAL AID AGENCY,28/10/2015,Crime Lower,Legal Aid Fund,JOHN ONIONS SOLICITORS,142019970,"53,438.00 ",Legal Aid Payment Crime Lower
MINISTRY OF JUSTICE,LEGAL AID AGENCY,14/10/2015,Civil Representation,Legal Aid Fund,ACCESS LAW LLP,141803806,"33,104.56 ",Legal Aid Payment Civil Representation
MINISTRY OF JUSTICE,LEGAL AID AGENCY,22/10/2015,Civil Representation,Legal Aid Fund,RAMSDENS SOLICITORS LLP,141933779,"69,222.98 ",Legal Aid Payment Civil Representation
MINISTRY OF JUSTICE,LEGAL AID AGENCY,28/10/2015,Crime Lower,Legal Aid Fund,DRISCOLL YOUNG SOLICITORS LIMITED,142019403,"27,948.00 ",Legal Aid Payment Crime Lower
MINISTRY OF JUSTICE,LEGAL AID AGENCY,14/10/2015,Civil Representation,Legal Aid Fund,GILLIAN IRVING QC,141788550,"56,385.00 ",Legal Aid Payment Civil Representation
MINISTRY OF JUSTICE,LEGAL AID AGENCY,28/10/2015,Crime Lower,Legal Aid Fund,RICHARD BODY & CO,142019154,"27,000.00 ",Legal Aid Payment Crime Lower
MINISTRY OF JUSTICE,LEGAL AID AGENCY,28/10/2015,Crime Lower,Legal Aid Fund,BISHOP & LIGHT SOLICITORS ,142019167,"31,500.00 ",Legal Aid Payment Crime Lower
MINISTRY OF JUSTICE,LEGAL AID AGENCY,28/10/2015,Legal Help,Legal Aid Fund,DUNCAN LEWIS,142017946,"25,200.00 ",Legal Aid Payment Legal Help
MINISTRY OF JUSTICE,LEGAL AID AGENCY,28/10/2015,Legal Help,Legal Aid Fund,ALASTAIR BATEMAN & CO,142018376,"28,137.00 ",Legal Aid Payment Legal Help
MINISTRY OF JUSTICE,LEGAL AID AGENCY,28/10/2015,Crime Lower,Legal Aid Fund,HINE SOLICITORS,142020117,"37,864.00 ",Legal Aid Payment Crime Lower
MINISTRY OF JUSTICE,LEGAL AID AGENCY,14/10/2015,Crime Higher,Legal Aid Fund,TUCKERS SOLICITORS LLP,141847617,"29,793.34 ",Legal Aid Payment Crime Higher
MINISTRY OF JUSTICE,LEGAL AID AGENCY,28/10/2015,Crime Lower,Legal Aid Fund,G T STEWART SOLICITORS,142020107,"31,976.00 ",Legal Aid Payment Crime Lower
